Workbook

Sheet 1. Introduction
G2: ='[2]1. Introduction'!G2 -> LCC-calculation for procurement of outdoor lighting systems
G3: Version 2.14
G4: Date: 2022-05-10
G5: Customized by Alejandro Sánchez de Miguel
B9: Introduction
B10: General instructions for how to use the tool.
H23: What is LCC?
H25: LCC stands for life-cycle costing. By using an LCC-tool one obtains a total picture of the costs associated with the use phase of a product, service or works. Comparisons can be made between different product alternatives and solutions. A life-cycle costing perspective can be used in many parts of the procurement process, and is also useful when working strategically with the organisation’s budget.
H27: How shall I use the tool?
H29: This tool is designed especially for the procurement of outdoor lighting. The tool can be used in the need’s analysis, when choosing criteria and in the evaluation of tenders. In this tool you can also calculate the climate impact based on the energy usage from the lighting system. In the need’s analysis, the tool can be used to get an early indication for the costs associated with the lighting system. For a lighting system, the operating cost for energy is a large component of the overall cost. By testing different rates of price increases, one can see different cost scenarios during the usage time. The contracting authority can also compare different alternative solutions through, for example, including or excluding control systems. If using an LCC-tool in the evaluation of tenders, the procurement documents must describe the parameters used in the calculation. How shall the parameters be documented and which methods for measurements shall the data be based upon? Procuring entities can use the procurement criteria “The lighting system's life cycle cost (LCC)”. The criteria can be downloaded through the National Agency for Public Procurement’s website. One rule of thumb when using an LCC-tool is to only include the large cost items, or costs that is expected to differ between different suppliers. Costs for environmental externalities can be included if their monetary value can be determined and verified in a standardised way. In evaluation of tenders, the life-cycle cost will be included as a parameter for evaluating the most economically advantageous tender. Quality requirements for the lighting system, such as light quality, is not included in the tool and must be specified separately in the tender documents.
H30: Design of the LCC tool
H32: The tool consists of 6 tabs: 1. Introduction: general instructions on how to use the tool. 2. LCC-tool: Calculation sheet where the life-cycle costing analysis is performed with standardised parameters. Instructions regarding the parameters can be found in the comments as well as in tab 4. 3. Result: A visual view of the LCC-calculation result with the 10 most cost effective solutions. 4. Tool parameters: Instructions on each of the cost parameters used in the tool and what data that shall be included. 5. Respondent sheet: Sheet for the supplier to attach to the tender. 6. Climate impact factors: Factors for calculating the environmental impact from energy. The contracting authority (CA) quote data to the upper part of the calculation tool, that is conditions for calculation and information on use.The CA might also give information regarding current lighting system, if one exists. This might clarify the improvements with a new, or renovated, system. The supplier will fill in remaining data according to the standards or instructions given. All costs shall be specified without VAT. Alternative lighting solutions these shall be specified in new columns. The supplier shall complete the respondent sheet and attach it to the tender. The CA may then fill in the supplier’s tender offer in a LCC-tool sheet to be able to compare the incoming tenders in the result tab. The LCC-tools are based on present value method to be able to calculate future cost to present value. The equation for calculating present value is included in the tool. Discount rate, electricity prices and economic period are examples of parameters that might affect the result and shall be decided upon within the CA. For example, a high discount rate will make the value of money lower during the calculation period while a low discount rate will allow the value of money to consist over time. Furthermore, a longer calculation period will give the operating cost a high impact on the overall result. To get an understanding for the final result, the tool can also be tested with different values for energy price increases etc.
H33: Contact
H34: The National Agency for Public Procurement develops and administrates the LCC-tools. The tools are optional to use in the public, as well as the private, sector. The National Agency for Public Procurement is responsible for the content in this tool. Any changes are made upon the responsibility of the user. Any questions regarding the tool, please contact info@uhmynd.se.
H35: For the light pollution part, contact Alejandro Sánchez de Miguel, alejasan@ucm.es

Sheet TEMP (hidden)
C3: MSR:S LCC-KALKYL FÖR UTOMHUSBELYSNING
C4: Version 2.1 2011-07-04
C6: Livscykelkostnader
C7: Livscykelkostnadsanalyser beaktar den totala kostnaden för en produkt under livscykeln. Den tar därmed inte bara hänsyn till grundinvesteringen utan också till drift- och underhållskostnader. Andra kostnader som kan vara viktiga i sammanhanget är miljöskatter samt avvecklingskostnader men även inkomster såsom subventioner och restvärde kan förändra kostnadsbilden.
C9: Verktyget
C10: Utomhusbelysning är den näst största posten i kommunernas drift- och underhållskostnader och står för ca 25 % av kostnaderna. Största posten i gatubelysningen är elförbrukningen, och belysningskostnaden har ökat med ca 9 % senaste åren på grund av ökande elpriser. Kommuner kan exempelvis spara uppåt 3,2 miljoner kr/år på en investering av 301 000 kr genom att välja mer energisnål belysning. Miljöstyrningsrådets LCC-verktyg för utomhusbelysning är ursprungligen framtaget av Aton Teknik Konsult på uppdrag av Ljuskultur enligt riktlinjer från Energimyndigheten. Om verktyget används i anbudsutvärderingen är de viktigt att man tydligt definierar vilka parametrar som kommer att användas samt vad leverantören ska inkomma med för information.
C11: Verktyget är i ursprungsläget låst för redigering men kan låsas upp genom menyn Verktyg /Skydd/ Ta bort bladets skydd.
C13: Miljöstyrningsrådet - Vägledning för hållbar upphandling
C14: Miljöstyrningsrådet arbetar för att bidra till en hållbar utveckling genom att stödja företag och offentlig förvaltning i deras miljöarbete på ett strategiskt och kostnadseffektivt sätt. Med tre huvudsakliga verktyg och tjänster erbjuder Miljöstyrningsråd vägledning för hållbar upphandling, miljöledning och miljörelaterad produktinformation. På Miljöstyrningsrådets hemsida, www.msr.se, hittar du mer information om LCC och övrig verksamhet.
C16: Kontakt
C17: För frågor och synpunkter angående LCC och detta verktyg kontakta helpdesk@msr.se eller tfn 08-50 10 55 50.
C22: Miljöstyrningsrådet
C23: Vasagatan 15-17
C24: 111 20 Stockholm
C25: info@msr.se
B30: > | C30: KLICKA HÄR FÖR ATT VISA LCC-KALKYLEN

Sheet 2. LCC-calc.
G2: ='1. Introduction'!G2 -> LCC-calculation for procurement of outdoor lighting systems
G3: ='1. Introduction'!G3 -> Version 2.14
G4: ='1. Introduction'!G4 -> Date: 2022-05-10
G5: Customized by Alejandro Sánchez de Miguel
C9: Calculation conditions (specified by the CA)
C11: PROJECT: | F11: Scenario 1
C12: DATE: | F12: 05/04/2022
C13: ADMINISTRATOR:
B15: 1.1 | C15: Usage time | H15: 30 | I15: year
B16: 1.2 | C16: Discount rate | H16: 0.0175
B17: 1.3 | C17: Electricity price | H17: 0.12 | I17: €/kWh
B18: 1.4 | C18: Annual electricity price change | H18: 0.02
B19: 1.5 | C19: Climate impact electricity usage (optional) | H19: 0.415 | I19: kgCO2/kWh
B20: 1.6 | C20: Operating hours of the lighting system (total) | H20: 4100 | I20: h/year
B21: 1.7 | C21: Operating hours full power | H21: 1095 | I21: h/year
B22: 1.8 | C22: Operating hours power level 1 | H22: 730 | I22: h/year
B23: 1.9 | C23: Operating hours power level 2 | H23: 2275 | I23: h/year
C25: Data from supplier
C27: Name | I27: HPS 150 W cobra No diming* | J27: HPS 150W standar diming | K27: HPS 150W new dimming | L27: HPS 70W standar diming | M27: LED no diming | N27: LED diming | O27: NEW LED dimming | P27: 3000 k All lumens | Q27: 4000k All Lumens | R27: 3000k reduced lumens | S27: 4000k reduced Lumens | T27: PC Amber | U27: 2200 k reduced lumens
C28: Calculation of investment costs
B29: 2.1 | C29: Number of luminaires | H29: qty | I29: 500 | J29: 500 | K29: =J29 -> 500 | L29: 500 | M29: 500 | N29: 500 | O29: 500 | P29: 500 | Q29: 500 | R29: 500 | S29: 500 | T29: 500 | U29: 500
B30: 2.2 | C30: Price per luminaire (incl. light source, electrical ballast, control device) | H30: €/piece | I30: 17 | J30: 17 | K30: =J30 -> 17 | L30: 17 | M30: 500 | N30: 500 | O30: 500 | P30: 500 | Q30: 500 | R30: 500 | S30: 500 | T30: 500 | U30: 501
B31: 2.3 | C31: Material and labour costs per luminaire | H31: €/piece | I31: 89 | J31: 89 | K31: 89 | L31: 89 | M31: =L31 -> 89 | N31: 89 | O31: =N31 -> 89 | P31: 89 | Q31: =P31 -> 89 | R31: 89 | S31: =R31 -> 89 | T31: 89 | U31: 89
B32: 2.4 | C32: Number of poles and foundations | H32: qty | I32: 500 | J32: 500 | K32: 500 | L32: 500 | M32: =L32 -> 500 | N32: 500 | O32: =N32 -> 500 | P32: 500 | Q32: =P32 -> 500 | R32: 500 | S32: =R32 -> 500 | T32: 500 | U32: 500
B33: 2.5 | C33: Price per pole and foundation | H33: €/piece | I33: 3240 | J33: 3240 | K33: 3240 | L33: 3240 | M33: 3240 | N33: =M33 -> 3240 | O33: =N33 -> 3240 | P33: 3240 | Q33: =P33 -> 3240 | R33: 3240 | S33: =R33 -> 3240 | T33: 3240 | U33: 3240
B34: 2.6 | C34: Material and labour costs per pole incl. foundation | H34: €/piece | I34: 1215 | J34: 1215 | K34: 1215 | L34: 1215 | M34: 1215 | N34: =M34 -> 1215 | O34: =N34 -> 1215 | P34: 1215 | Q34: =P34 -> 1215 | R34: 1215 | S34: =R34 -> 1215 | T34: 1215 | U34: 1215
B35: 2.7 | C35: Cost of external control device (incl. operation start-up and license fees) | H35: Euro | I35: 0 | J35: 0 | K35: 0 | L35: 0 | M35: =L35 -> 0 | N35: 0 | O35: =N35 -> 0 | P35: 0 | Q35: =P35 -> 0 | R35: 0 | S35: =R35 -> 0 | T35: 0 | U35: 0
C36: Calculation of operating costs
B37: 3.1 | C37: Effect per luminaire incl. operating loss and system effects | H37: W | I37: 150 | J37: 150 | K37: 150 | L37: 70 | M37: 100 | N37: 100 | O37: 80 | P37: 150 | Q37: 120 | R37: 97 | S37: 88 | T37: 88 | U37: 88
B38: 3.2 | C38: Reduced power level 1 | H38: W | I38: 150 | J38: =150*0.8 -> 120 | K38: 120 | L38: 50 | M38: 100 | N38: 50 | O38: 40 | P38: 150 | Q38: 120 | R38: 77 | S38: 70 | T38: 50 | U38: 50
B39: 3.3 | C39: Reduced power level 2 | H39: W | I39: 150 | J39: 120 | K39: 70 | L39: 50 | M39: 100 | N39: 50 | O39: 40 | P39: 150 | Q39: 120 | R39: 50 | S39: 50 | T39: 50 | U39: 50
C40: Calculation of maintenance costs
B41: 4.1 | C41: Light source cost per luminaire | H41: €/piece | I41: 17 | J41: 17 | K41: =J41 -> 17 | L41: =K41 -> 17 | M41: 200 | N41: 200 | O41: 200 | P41: 200 | Q41: 200 | R41: 200 | S41: 200 | T41: 200 | U41: 200
B42: 4.2 | C42: Labour cost light source replacement | H42: €/piece | I42: 89 | J42: =I42 -> 89 | K42: =J42 -> 89 | L42: 89 | M42: =L42 -> 89 | N42: 89 | O42: =N42 -> 89 | P42: 89 | Q42: =P42 -> 89 | R42: 89 | S42: =R42 -> 89 | T42: 89 | U42: 89
B43: 4.3 | C43: Replacement interval light sources | H43: h | I43: 22000 | J43: 22000 | K43: 22000 | L43: 22000 | M43: 50000 | N43: 50000 | O43: 50000 | P43: 50000 | Q43: 50000 | R43: 50001 | S43: 50002 | T43: 50003 | U43: 50004
B44: 4.4 | C44: Electrical ballast cost | H44: €/piece | I44: 160 | J44: =I44 -> 160 | K44: 160 | L44: 160 | M44: =L44 -> 160 | N44: 160 | O44: =N44 -> 160 | P44: 160 | Q44: =P44 -> 160 | R44: 160 | S44: =R44 -> 160 | T44: 160 | U44: 160
B45: 4.5 | C45: Labour cost electrical ballast replacement | H45: €/piece | I45: 89 | J45: =I45 -> 89 | K45: 89 | L45: 89 | M45: =L45 -> 89 | N45: 89 | O45: =N45 -> 89 | P45: 89 | Q45: =P45 -> 89 | R45: 89 | S45: =R45 -> 89 | T45: 89 | U45: 89
B46: 4.6 | C46: Replacement interval electrical ballast | H46: h | I46: 80000 | J46: =I46 -> 80000 | K46: 80000 | L46: 80000 | M46: 50000 | N46: 50000 | O46: 50000 | P46: 50000 | Q46: 50000 | R46: 50000 | S46: 50000 | T46: 50001 | U46: 50002
B47: 4.7 | C47: Lifespan luminaire | H47: year | I47: 30 | J47: =I47 -> 30 | K47: 30 | L47: 30 | M47: =L47 -> 30 | N47: 30 | O47: =N47 -> 30 | P47: 30 | Q47: =P47 -> 30 | R47: 30 | S47: =R47 -> 30 | T47: 30 | U47: 30
B48: 4.8 | C48: Lifespan pole | H48: year | I48: 30 | J48: =I48 -> 30 | K48: 30 | L48: 30 | M48: =L48 -> 30 | N48: 30 | O48: =N48 -> 30 | P48: 30 | Q48: =P48 -> 30 | R48: 30 | S48: =R48 -> 30 | T48: 30 | U48: 30
B49: 4.9 | C49: Labour cost inspection | H49: €/piece | I49: 58 | J49: =I49 -> 58 | K49: 58 | L49: 58 | M49: =L49 -> 58 | N49: 58 | O49: =N49 -> 58 | P49: 58 | Q49: =P49 -> 58 | R49: 58 | S49: =R49 -> 58 | T49: 58 | U49: 58
B50: 4.10 | C50: Inspection interval | H50: year | I50: 5 | J50: =I50 -> 5 | K50: 5 | L50: 5 | M50: =L50 -> 5 | N50: 5 | O50: =N50 -> 5 | P50: 5 | Q50: =P50 -> 5 | R50: 5 | S50: =R50 -> 5 | T50: 5 | U50: 5
B51: 4.11 | C51: Labour cost surveillance | H51: €/piece | I51: 1 | J51: =I51 -> 1 | K51: 1 | L51: 1 | M51: =L51 -> 1 | N51: 1 | O51: =N51 -> 1 | P51: 1 | Q51: =P51 -> 1 | R51: 1 | S51: =R51 -> 1 | T51: 1 | U51: 1
B52: 4.12 | C52: Surveillance interval | H52: year | I52: 2 | J52: =I52 -> 2 | K52: 2 | L52: 2 | M52: =L52 -> 2 | N52: 2 | O52: =N52 -> 2 | P52: 2 | Q52: =P52 -> 2 | R52: 2 | S52: =R52 -> 2 | T52: 2 | U52: 2
A53: Modificed colums | B53: 4.13 | C53: Correlated Colour Temperature | H53: k | I53: 2400 | J53: =I53 -> 2400 | K53: =J53 -> 2400 | L53: =K53 -> 2400 | M53: 3000 | N53: =M53 -> 3000 | O53: =N53 -> 3000 | P53: =O53 -> 3000 | Q53: 4000 | R53: 3000 | S53: 4000 | T53: 1800 | U53: 2200
A54: Modificed colums | B54: 4.14 | C54: Lighting eficiency | H54: lm/W | I54: 120 | J54: 120 | K54: 120 | L54: 100 | M54: 95 | N54: 95 | O54: 147 | P54: 113 | Q54: 147 | R54: 113 | S54: 147 | T54: 113 | U54: 113
B55: 4.15 | C55: Upward Light Output ratio | H55: % | I55: 0.05 | J55: 0.05 | K55: 0.05 | L55: 0.05 | M55: 0 | N55: 0 | O55: 0 | P55: 0 | Q55: 0 | R55: 0 | S55: 0 | T55: 0 | U55: 0
B56: 4.16 | C56: Environment | H56: Urban/Rural | I56: Rural | J56: Rural | K56: Rural | L56: Rural | M56: Rural | N56: Rural | O56: Rural | P56: Rural | Q56: Rural | R56: Rural | S56: Rural | T56: Rural | U56: Rural
C58: Result
C59: Rangordning av alternativ | I59: =IF(I108="","",SUMPRODUCT(($I$108:$XFD$108<I108)*($I$108:$XFD$108<>""))+SUMPRODUCT(($I$108:I108=I108)*1)) -> 10 | J59: =IF(J108="","",SUMPRODUCT(($I$108:$XFD$108<J108)*($I$108:$XFD$108<>""))+SUMPRODUCT(($I$108:J108=J108)*1)) -> 9 | K59: =IF(K108="","",SUMPRODUCT(($I$108:$XFD$108<K108)*($I$108:$XFD$108<>""))+SUMPRODUCT(($I$108:K108=K108)*1)) -> 2 | L59: =IF(L108="","",SUMPRODUCT(($I$108:$XFD$108<L108)*($I$108:$XFD$108<>""))+SUMPRODUCT(($I$108:L108=L108)*1)) -> 1 | M59: =IF(M108="","",SUMPRODUCT(($I$108:$XFD$108<M108)*($I$108:$XFD$108<>""))+SUMPRODUCT(($I$108:M108=M108)*1)) -> 11 | N59: =IF(N108="","",SUMPRODUCT(($I$108:$XFD$108<N108)*($I$108:$XFD$108<>""))+SUMPRODUCT(($I$108:N108=N108)*1)) -> 6 | O59: =IF(O108="","",SUMPRODUCT(($I$108:$XFD$108<O108)*($I$108:$XFD$108<>""))+SUMPRODUCT(($I$108:O108=O108)*1)) -> 3 | P59: =IF(P108="","",SUMPRODUCT(($I$108:$XFD$108<P108)*($I$108:$XFD$108<>""))+SUMPRODUCT(($I$108:P108=P108)*1)) -> 13 | Q59: =IF(Q108="","",SUMPRODUCT(($I$108:$XFD$108<Q108)*($I$108:$XFD$108<>""))+SUMPRODUCT(($I$108:Q108=Q108)*1)) -> 12 | R59: =IF(R108="","",SUMPRODUCT(($I$108:$XFD$108<R108)*($I$108:$XFD$108<>""))+SUMPRODUCT(($I$108:R108=R108)*1)) -> 8 | S59: =IF(S108="","",SUMPRODUCT(($I$108:$XFD$108<S108)*($I$108:$XFD$108<>""))+SUMPRODUCT(($I$108:S108=S108)*1)) -> 7 | T59: =IF(T108="","",SUMPRODUCT(($I$108:$XFD$108<T108)*($I$108:$XFD$108<>""))+SUMPRODUCT(($I$108:T108=T108)*1)) -> 4 | U59: =IF(U108="","",SUMPRODUCT(($I$108:$XFD$108<U108)*($I$108:$XFD$108<>""))+SUMPRODUCT(($I$108:U108=U108)*1)) -> 5
I60: Current facility | J60: =J67 -> HPS 150W standar diming | K60: =K67 -> HPS 150W new dimming | L60: HPS 70W standar diming | M60: =M67 -> LED no diming | N60: LED diming | O60: =O67 -> NEW LED dimming | P60: 3000 k All lumens | Q60: =Q67 -> 4000k All Lumens | R60: 3000k reduced lumens | S60: =S67 -> 4000k reduced Lumens | T60: PC Amber | U60: =U67 -> 2200 k reduced lumens
C61: TOTAL COST | H61: € | I61: =I108 -> 3925352.297 | J61: 3760059.012 | K61: 3551494.273 | L61: 3213756.912 | M61: =M108 -> 3925457.681 | N61: 3649968.872 | O61: =O108 -> 3554716.668 | P61: 4301332.595 | Q61: =Q108 -> 4075807.646 | R61: 3680079.209 | S61: =S108 -> 3652634.846 | T61: 3625854.99 | U61: =U108 -> 3626344.763
C62: Energy costs per year | H62: € | I62: =I91 -> 36900 | J62: 31491 | K62: 24666 | L62: 13614 | M62: =M91 -> 24600 | N62: 15585 | O62: =O91 -> 12468 | P62: 36900 | Q62: =Q91 -> 29520 | R62: 16570.5 | S62: =S91 -> 15672.6 | T62: 14796.6 | U62: =U91 -> 14796.6
C63: Energy costs full usage time | H63: € | I63: =I93 -> 1127624.741 | J63: 962331.456 | K63: 753766.7173 | L63: 416029.3558 | M63: =M93 -> 751749.8275 | N63: 476261.0188 | O63: =O93 -> 381008.815 | P63: 1127624.741 | Q63: =Q93 -> 902099.793 | R63: 506376.8503 | S63: =S93 -> 478937.9816 | T63: 452168.3536 | U63: =U93 -> 452168.3536
A64: Modificed colums | C64: Climate impact***** | H64: kgCO2/year | I64: =I90*$H$19+I190/I47 -> 134070 | J64: =J90*$H$19+J190/J47 -> 114417.3 | K64: =K90*$H$19+K190/K47 -> 89619.8 | L64: =L90*$H$19+L190/L47 -> 49067.125 | M64: =M90*$H$19+M190/M47 -> 101083.45 | N64: =N90*$H$19+N190/N47 -> 64040.06375 | O64: =O90*$H$19+O190/O47 -> 55673.1526 | P64: =P90*$H$19+P190/P47 -> 156174.945 | Q64: =Q90*$H$19+Q190/Q47 -> 131815.164 | R64: =R90*$H$19+R190/R47 -> 70132.70802 | S64: =S90*$H$19+S190/S47 -> 69982.59957 | T64: =T90*$H$19+T190/T47 -> 62624.88323 | U64: =U90*$H$19+U190/U47 -> 62638.8167
C66: LCC-calculation
I67: Current facility | J67: =J27 -> HPS 150W standar diming | K67: =K27 -> HPS 150W new dimming | L67: =L27 -> HPS 70W standar diming | M67: =M27 -> LED no diming | N67: =N27 -> LED diming | O67: =O27 -> NEW LED dimming | P67: =P27 -> 3000 k All lumens | Q67: =Q27 -> 4000k All Lumens | R67: =R27 -> 3000k reduced lumens | S67: =S27 -> 4000k reduced Lumens | T67: =T27 -> PC Amber | U67: =U27 -> 2200 k reduced lumens
C68: INVESTMENT COSTS
C69: Luminaires (may include poles)
C70: Number of luminaires | H70: qty | I70: =I29 -> 500 | J70: =J29 -> 500 | K70: =K29 -> 500 | L70: =L29 -> 500 | M70: =M29 -> 500 | N70: =N29 -> 500 | O70: =O29 -> 500 | P70: =P29 -> 500 | Q70: =Q29 -> 500 | R70: =R29 -> 500 | S70: =S29 -> 500 | T70: =T29 -> 500 | U70: =U29 -> 500
C71: á-price | H71: €/piece | I71: =I30 -> 17 | J71: =J30 -> 17 | K71: =K30 -> 17 | L71: =L30 -> 17 | M71: =M30 -> 500 | N71: =N30 -> 500 | O71: =O30 -> 500 | P71: =P30 -> 500 | Q71: =Q30 -> 500 | R71: =R30 -> 500 | S71: =S30 -> 500 | T71: =T30 -> 500 | U71: =U30 -> 501
C72: Total luminaire cost | H72: kronor | I72: =I70*I71 -> 8500 | J72: 8500 | K72: 8500 | L72: 8500 | M72: =M70*M71 -> 250000 | N72: 250000 | O72: =O70*O71 -> 250000 | P72: 250000 | Q72: =Q70*Q71 -> 250000 | R72: 250000 | S72: =S70*S71 -> 250000 | T72: 250000 | U72: =U70*U71 -> 250500
C73: Poles and foundations
C74: Number of poles including foundation | H74: qty | I74: =I32 -> 500 | J74: =J32 -> 500 | K74: =K32 -> 500 | L74: =L32 -> 500 | M74: =M32 -> 500 | N74: =N32 -> 500 | O74: =O32 -> 500 | P74: =P32 -> 500 | Q74: =Q32 -> 500 | R74: =R32 -> 500 | S74: =S32 -> 500 | T74: =T32 -> 500 | U74: =U32 -> 500
C75: á-price | H75: €/piece | I75: =I33 -> 3240 | J75: =J33 -> 3240 | K75: =K33 -> 3240 | L75: =L33 -> 3240 | M75: =M33 -> 3240 | N75: =N33 -> 3240 | O75: =O33 -> 3240 | P75: =P33 -> 3240 | Q75: =Q33 -> 3240 | R75: =R33 -> 3240 | S75: =S33 -> 3240 | T75: =T33 -> 3240 | U75: =U33 -> 3240
I76: =I74*I75 -> 1620000 | J76: =J74*J75 -> 1620000 | K76: 1620000 | L76: =L74*L75 -> 1620000 | M76: 1620000 | N76: =N74*N75 -> 1620000 | O76: 1620000 | P76: =P74*P75 -> 1620000 | Q76: 1620000 | R76: =R74*R75 -> 1620000 | S76: 1620000 | T76: =T74*T75 -> 1620000 | U76: 1620000
C77: Cost of installation
C78: Material and labour cost for luminaires | H78: € | I78: =I31*I29 -> 44500 | J78: =J31*J29 -> 44500 | K78: =K31*K29 -> 44500 | L78: =L31*L29 -> 44500 | M78: =M31*M29 -> 44500 | N78: =N31*N29 -> 44500 | O78: =O31*O29 -> 44500 | P78: =P31*P29 -> 44500 | Q78: =Q31*Q29 -> 44500 | R78: =R31*R29 -> 44500 | S78: =S31*S29 -> 44500 | T78: =T31*T29 -> 44500 | U78: =U31*U29 -> 44500
C79: Material and labour costs for poles including foundation | H79: € | I79: =I34*I32 -> 607500 | J79: =J34*J32 -> 607500 | K79: =K34*K32 -> 607500 | L79: =L34*L32 -> 607500 | M79: =M34*M32 -> 607500 | N79: =N34*N32 -> 607500 | O79: =O34*O32 -> 607500 | P79: =P34*P32 -> 607500 | Q79: =Q34*Q32 -> 607500 | R79: =R34*R32 -> 607500 | S79: =S34*S32 -> 607500 | T79: =T34*T32 -> 607500 | U79: =U34*U32 -> 607500
C80: Total cost of installation | H80: € | I80: =SUM(I78:I79) -> 652000 | J80: =SUM(J78:J79) -> 652000 | K80: 652000 | L80: 652000 | M80: =SUM(M78:M79) -> 652000 | N80: 652000 | O80: =SUM(O78:O79) -> 652000 | P80: 652000 | Q80: =SUM(Q78:Q79) -> 652000 | R80: 652000 | S80: =SUM(S78:S79) -> 652000 | T80: 652000 | U80: =SUM(U78:U79) -> 652000
C81: Cost of external control device | H81: € | I81: =I35 -> 0 | J81: =J35 -> 0 | K81: =K35 -> 0 | L81: =L35 -> 0 | M81: =M35 -> 0 | N81: =N35 -> 0 | O81: =O35 -> 0 | P81: =P35 -> 0 | Q81: =Q35 -> 0 | R81: =R35 -> 0 | S81: =S35 -> 0 | T81: =T35 -> 0 | U81: =U35 -> 0
C82: SUM INVESTMENT COSTS | H82: € | I82: =I72+I76+I80+I81 -> 2280500 | J82: 2280500 | K82: 2280500 | L82: 2280500 | M82: =M72+M76+M80+M81 -> 2522000 | N82: 2522000 | O82: =O72+O76+O80+O81 -> 2522000 | P82: 2522000 | Q82: =Q72+Q76+Q80+Q81 -> 2522000 | R82: 2522000 | S82: =S72+S76+S80+S81 -> 2522000 | T82: 2522000 | U82: =U72+U76+U80+U81 -> 2522500
C84: ENERGY & MAINTENANCE COSTS
C85: ENERGY COSTS
C86: Total installed effect | H86: W | I86: =I37*I29 -> 75000 | J86: =J37*J29 -> 75000 | K86: =K37*K29 -> 75000 | L86: =L37*L29 -> 35000 | M86: =M37*M29 -> 50000 | N86: =N37*N29 -> 50000 | O86: =O37*O29 -> 40000 | P86: =P37*P29 -> 75000 | Q86: =Q37*Q29 -> 60000 | R86: =R37*R29 -> 48500 | S86: =S37*S29 -> 44000 | T86: =T37*T29 -> 44000 | U86: =U37*U29 -> 44000
C87: Energy usage full effect | H87: kWh | I87: =(I$37*($H$20-IF(I$88>0,$H$22,0)-IF(I$89>0,$H$23,0))*I$29/1000) -> 82125 | J87: =(J$37*($H$20-IF(J$88>0,$H$22,0)-IF(J$89>0,$H$23,0))*J$29/1000) -> 82125 | K87: =(K$37*($H$20-IF(K$88>0,$H$22,0)-IF(K$89>0,$H$23,0))*K$29/1000) -> 82125 | L87: =(L$37*($H$20-IF(L$88>0,$H$22,0)-IF(L$89>0,$H$23,0))*L$29/1000) -> 38325 | M87: =(M$37*($H$20-IF(M$88>0,$H$22,0)-IF(M$89>0,$H$23,0))*M$29/1000) -> 54750 | N87: =(N$37*($H$20-IF(N$88>0,$H$22,0)-IF(N$89>0,$H$23,0))*N$29/1000) -> 54750 | O87: =(O$37*($H$20-IF(O$88>0,$H$22,0)-IF(O$89>0,$H$23,0))*O$29/1000) -> 43800 | P87: =(P$37*($H$20-IF(P$88>0,$H$22,0)-IF(P$89>0,$H$23,0))*P$29/1000) -> 82125 | Q87: =(Q$37*($H$20-IF(Q$88>0,$H$22,0)-IF(Q$89>0,$H$23,0))*Q$29/1000) -> 65700 | R87: =(R$37*($H$20-IF(R$88>0,$H$22,0)-IF(R$89>0,$H$23,0))*R$29/1000) -> 53107.5 | S87: =(S$37*($H$20-IF(S$88>0,$H$22,0)-IF(S$89>0,$H$23,0))*S$29/1000) -> 48180 | T87: =(T$37*($H$20-IF(T$88>0,$H$22,0)-IF(T$89>0,$H$23,0))*T$29/1000) -> 48180 | U87: =(U$37*($H$20-IF(U$88>0,$H$22,0)-IF(U$89>0,$H$23,0))*U$29/1000) -> 48180
C88: Energy usage power level 1 | H88: kWh | I88: =(I$38*$H$22*I$29)/1000 -> 54750 | J88: =(J$38*$H$22*J$29)/1000 -> 43800 | K88: 43800 | L88: 18250 | M88: 36500 | N88: 18250 | O88: 14600 | P88: 54750 | Q88: 43800 | R88: 28105 | S88: 25550 | T88: 18250 | U88: 18250
C89: Energy usage power level 2 | H89: kWh | I89: =(I$39*$H$23*I$29)/1000 -> 170625 | J89: =(J$39*$H$23*J$29)/1000 -> 136500 | K89: =(K$39*$H$23*K$29)/1000 -> 79625 | L89: =(L$39*$H$23*L$29)/1000 -> 56875 | M89: =(M$39*$H$23*M$29)/1000 -> 113750 | N89: =(N$39*$H$23*N$29)/1000 -> 56875 | O89: =(O$39*$H$23*O$29)/1000 -> 45500 | P89: =(P$39*$H$23*P$29)/1000 -> 170625 | Q89: =(Q$39*$H$23*Q$29)/1000 -> 136500 | R89: =(R$39*$H$23*R$29)/1000 -> 56875 | S89: =(S$39*$H$23*S$29)/1000 -> 56875 | T89: =(T$39*$H$23*T$29)/1000 -> 56875 | U89: =(U$39*$H$23*U$29)/1000 -> 56875
C90: Energy usage/year | H90: kWh/year | I90: =(I$87+I$88+I$89) -> 307500 | J90: =(J$87+J$88+J$89) -> 262425 | K90: 205550 | L90: 113450 | M90: 205000 | N90: 129875 | O90: 103900 | P90: 307500 | Q90: 246000 | R90: 138087.5 | S90: 130605 | T90: 123305 | U90: 123305
C91: Energy costs per year | H91: €/year | I91: =I$90*$H$17 -> 36900 | J91: =J$90*$H$17 -> 31491 | K91: =K$90*$H$17 -> 24666 | L91: =L$90*$H$17 -> 13614 | M91: =M$90*$H$17 -> 24600 | N91: =N$90*$H$17 -> 15585 | O91: =O$90*$H$17 -> 12468 | P91: =P$90*$H$17 -> 36900 | Q91: =Q$90*$H$17 -> 29520 | R91: =R$90*$H$17 -> 16570.5 | S91: =S$90*$H$17 -> 15672.6 | T91: =T$90*$H$17 -> 14796.6 | U91: =U$90*$H$17 -> 14796.6
C92: Factor for present value | I92: =IF($H$16=$H$18,$H$15,(1/($H$16-$H$18))*(1-((1+$H$18)/(1+$H$16))^$H$15)) -> 30.55893608 | J92: =IF($H$16=$H$18,$H$15,(1/($H$16-$H$18))*(1-((1+$H$18)/(1+$H$16))^$H$15)) -> 30.55893608 | K92: 30.55893608 | L92: 30.55893608 | M92: 30.55893608 | N92: 30.55893608 | O92: 30.55893608 | P92: 30.55893608 | Q92: 30.55893608 | R92: 30.55893608 | S92: 30.55893608 | T92: 30.55893608 | U92: 30.55893608
C93: Energikostnader under hela livslängden | H93: € | I93: =I91*I92 -> 1127624.741 | J93: 962331.456 | K93: 753766.7173 | L93: 416029.3558 | M93: =M91*M92 -> 751749.8275 | N93: 476261.0188 | O93: =O91*O92 -> 381008.815 | P93: 1127624.741 | Q93: =Q91*Q92 -> 902099.793 | R93: 506376.8503 | S93: =S91*S92 -> 478937.9816 | T93: 452168.3536 | U93: =U91*U92 -> 452168.3536
C95: MAINTENANCE AND RE-INVESTMENT COSTS
C96: Annual maintenance costs light sources | H96: €/year | I96: =IF(I$43>0,(((I$41+I$42)*I$29)/(I$43/$H$20)),0) -> 9877.272727 | J96: =IF(J$43>0,(((J$41+J$42)*J$29)/(J$43/$H$20)),0) -> 9877.272727 | K96: 9877.272727 | L96: =IF(L$43>0,(((L$41+L$42)*L$29)/(L$43/$H$20)),0) -> 9877.272727 | M96: 11849 | N96: 11849 | O96: 11849 | P96: 11849 | Q96: 11849 | R96: 11848.76302 | S96: 11848.52606 | T96: 11848.2891 | U96: 11848.05216
C97: Annual maintenance costs electrical ballast | H97: €/year | I97: =IF(I$46>0,(((I$44+I$45)*I$29)/(I$46/$H$20)),0) -> 6380.625 | J97: =IF(J$46>0,(((J$44+J$45)*J$29)/(J$46/$H$20)),0) -> 6380.625 | K97: 6380.625 | L97: =IF(L$46>0,(((L$44+L$45)*L$29)/(L$46/$H$20)),0) -> 6380.625 | M97: 10209 | N97: 10209 | O97: 10209 | P97: 10209 | Q97: 10209 | R97: 10209 | S97: 10209 | T97: 10208.79582 | U97: 10208.59166
C98: Annual costs inspection | H98: €/year | I98: =IF(I50>0,(I$49*I$29)/I$50,0) -> 5800 | J98: =IF(J50>0,(J$49*J$29)/J$50,0) -> 5800 | K98: =IF(K50>0,(K$49*K$29)/K$50,0) -> 5800 | L98: =IF(L50>0,(L$49*L$29)/L$50,0) -> 5800 | M98: =IF(M50>0,(M$49*M$29)/M$50,0) -> 5800 | N98: =IF(N50>0,(N$49*N$29)/N$50,0) -> 5800 | O98: =IF(O50>0,(O$49*O$29)/O$50,0) -> 5800 | P98: =IF(P50>0,(P$49*P$29)/P$50,0) -> 5800 | Q98: =IF(Q50>0,(Q$49*Q$29)/Q$50,0) -> 5800 | R98: =IF(R50>0,(R$49*R$29)/R$50,0) -> 5800 | S98: =IF(S50>0,(S$49*S$29)/S$50,0) -> 5800 | T98: =IF(T50>0,(T$49*T$29)/T$50,0) -> 5800 | U98: =IF(U50>0,(U$49*U$29)/U$50,0) -> 5800
C99: Annual costs surveillance | H99: €/year | I99: =IF(I$52>0,(I$51*I$29)/I$52,0) -> 250 | J99: =IF(J$52>0,(J$51*J$29)/J$52,0) -> 250 | K99: 250 | L99: =IF(L$52>0,(L$51*L$29)/L$52,0) -> 250 | M99: 250 | N99: 250 | O99: 250 | P99: 250 | Q99: 250 | R99: 250 | S99: 250 | T99: 250 | U99: 250
C100: Sum of annual maintenace costs | H100: €/year | I100: =SUM(I96:I99) -> 22307.89773 | J100: 22307.89773 | K100: 22307.89773 | L100: 22307.89773 | M100: 28108 | N100: 28108 | O100: 28108 | P100: 28108 | Q100: 28108 | R100: 28107.76302 | S100: 28107.52606 | T100: 28107.08493 | U100: =SUM(U96:U99) -> 28106.64381
C101: Factor for present value | I101: =(1/$H$16)*(1-((1/(1+$H$16))^$H$15)) -> 23.18584934 | J101: =(1/$H$16)*(1-((1/(1+$H$16))^$H$15)) -> 23.18584934 | K101: 23.18584934 | L101: 23.18584934 | M101: 23.18584934 | N101: 23.18584934 | O101: 23.18584934 | P101: 23.18584934 | Q101: 23.18584934 | R101: 23.18584934 | S101: 23.18584934 | T101: 23.18584934 | U101: 23.18584934
C102: Re-investment costs during usage time
C103: Re-investment costs luminaires (present value) | H103: EURO | I103: =IF(I$47<$H$15,(((I$30+I$31)*I$29)/(1+$H$16)^I$47),0) -> 0 | J103: =IF(J$47<$H$15,(((J$30+J$31)*J$29)/((1+$H$16)^J$47)),0) -> 0 | K103: =IF(K$47<$H$15,(((K$30+K$31)*K$29)/((1+$H$16)^K47)),0) -> 0 | L103: =IF(L$47<$H$15,(((L$30+L$31)*L$29)/((1+$H$16)^L47)),0) -> 0 | M103: =IF(M$47<$H$15,(((M$30+M$31)*M$29)/((1+$H$16)^M47)),0) -> 0 | N103: =IF(N$47<$H$15,(((N$30+N$31)*N$29)/((1+$H$16)^N47)),0) -> 0 | O103: =IF(O$47<$H$15,(((O$30+O$31)*O$29)/((1+$H$16)^O47)),0) -> 0 | P103: =IF(P$47<$H$15,(((P$30+P$31)*P$29)/((1+$H$16)^P47)),0) -> 0 | Q103: =IF(Q$47<$H$15,(((Q$30+Q$31)*Q$29)/((1+$H$16)^Q47)),0) -> 0 | R103: =IF(R$47<$H$15,(((R$30+R$31)*R$29)/((1+$H$16)^R47)),0) -> 0 | S103: =IF(S$47<$H$15,(((S$30+S$31)*S$29)/((1+$H$16)^S47)),0) -> 0 | T103: =IF(T$47<$H$15,(((T$30+T$31)*T$29)/((1+$H$16)^T47)),0) -> 0 | U103: =IF(U$47<$H$15,(((U$30+U$31)*U$29)/((1+$H$16)^U47)),0) -> 0
C104: Re-investment costs poles (present value) | H104: EURO | I104: =IF(I$48<$H$15,(((I$33+I$34)*I$32)/(1+$H$16)^I$48),0) -> 0 | J104: =IF(J$48<$H$15,(((J$33+J$34)*J$32)/(1+$H$16)^J$48),0) -> 0 | K104: 0 | L104: 0 | M104: 0 | N104: 0 | O104: 0 | P104: 0 | Q104: 0 | R104: 0 | S104: 0 | T104: 0 | U104: 0
C105: Maintenance and re-investment costs during entire usage time | H105: EURO | I105: =(I100*I101)+I103+I104 -> 517227.5559 | J105: =(J100*J101)+J103+J104 -> 517227.5559 | K105: 517227.5559 | L105: 517227.5559 | M105: =(M100*M101)+M103+M104 -> 651707.8533 | N105: 651707.8533 | O105: =(O100*O101)+O103+O104 -> 651707.8533 | P105: 651707.8533 | Q105: =(Q100*Q101)+Q103+Q104 -> 651707.8533 | R105: 651702.3589 | S105: =(S100*S101)+S103+S104 -> 651696.8646 | T105: 651686.6366 | U105: =(U100*U101)+U103+U104 -> 651676.409
C107: SUM OF ENERGY AND MAINTENANCE COSTS | H107: EURO | I107: =I93+I105 -> 1644852.297 | J107: 1479559.012 | K107: 1270994.273 | L107: 933256.9116 | M107: 1403457.681 | N107: 1127968.872 | O107: 1032716.668 | P107: 1779332.595 | Q107: 1553807.646 | R107: 1158079.209 | S107: 1130634.846 | T107: 1103854.99 | U107: 1103844.763
C108: TOTAL COST | H108: EURO | I108: =IF((I82+I107)>0,(I82+I107),"") -> 3925352.297 | J108: 3760059.012 | K108: 3551494.273 | L108: 3213756.912 | M108: 3925457.681 | N108: 3649968.872 | O108: 3554716.668 | P108: 4301332.595 | Q108: 4075807.646 | R108: 3680079.209 | S108: 3652634.846 | T108: 3625854.99 | U108: 3626344.763
C109: Energy cost savings per year compared to current facility | H109: EURO | J109: =IFERROR($I$91-J91,"") -> 5409 | K109: =IFERROR($I$91-K91,"") -> 12234 | L109: =IFERROR($I$91-L91,"") -> 23286 | M109: =IFERROR($I$91-M91,"") -> 12300 | N109: =IFERROR($I$91-N91,"") -> 21315 | O109: =IFERROR($I$91-O91,"") -> 24432 | P109: =IFERROR($I$91-P91,"") -> 0 | Q109: =IFERROR($I$91-Q91,"") -> 7380 | R109: =IFERROR($I$91-R91,"") -> 20329.5 | S109: =IFERROR($I$91-S91,"") -> 21227.4 | T109: =IFERROR($I$91-T91,"") -> 22103.4 | U109: =IFERROR($I$91-U91,"") -> 22103.4
C110: LIGTH POLLUTION
C111: LIGHTING EFICIENCY | H111: Lum/W | I111: =I54 -> 120 | J111: =J54 -> 120 | K111: 120 | L111: 100 | M111: 95 | N111: 95 | O111: 147 | P111: 113 | Q111: 147 | R111: 113 | S111: 147 | T111: 113 | U111: 113
C112: Lumen output per street light full power | H112: Lumen | I112: =I37*I$111 -> 18000 | J112: =J37*J$111 -> 18000 | K112: =K37*K$111 -> 18000 | L112: =L37*L$111 -> 7000 | M112: =M37*M$111 -> 9500 | N112: =N37*N$111 -> 9500 | O112: =O37*O$111 -> 11760 | P112: =P37*P$111 -> 16950 | Q112: =Q37*Q$111 -> 17640 | R112: =R37*R$111 -> 10961 | S112: =S37*S$111 -> 12936 | T112: =T37*T$111 -> 9944 | U112: =U37*U$111 -> 9944
C113: Lumen output per street light level 1 | H113: Lumen | I113: =I38*I$111 -> 18000 | J113: =J38*J$111 -> 14400 | K113: =K38*K$111 -> 14400 | L113: =L38*L$111 -> 5000 | M113: =M38*M$111 -> 9500 | N113: =N38*N$111 -> 4750 | O113: =O38*O$111 -> 5880 | P113: =P38*P$111 -> 16950 | Q113: =Q38*Q$111 -> 17640 | R113: =R38*R$111 -> 8701 | S113: =S38*S$111 -> 10290 | T113: =T38*T$111 -> 5650 | U113: =U38*U$111 -> 5650
C114: Lumen output per street light level 2 | H114: Lumen | I114: =I39*I$111 -> 18000 | J114: =J39*J$111 -> 14400 | K114: =K39*K$111 -> 8400 | L114: =L39*L$111 -> 5000 | M114: =M39*M$111 -> 9500 | N114: =N39*N$111 -> 4750 | O114: =O39*O$111 -> 5880 | P114: =P39*P$111 -> 16950 | Q114: =Q39*Q$111 -> 17640 | R114: =R39*R$111 -> 5650 | S114: =S39*S$111 -> 7350 | T114: =T39*T$111 -> 5650 | U114: =U39*U$111 -> 5650
C115: Lumens emited in life time | H115: Glmh | I115: =((I112*$H$21+I113*$H$22+I114*$H$23)*30)/1000000000 -> 2.214 | J115: =((J112*$H$21+J113*$H$22+J114*$H$23)*30)/1000000000 -> 1.88946 | K115: =((K112*$H$21+K113*$H$22+K114*$H$23)*30)/1000000000 -> 1.47996 | L115: =((L112*$H$21+L113*$H$22+L114*$H$23)*30)/1000000000 -> 0.6807 | M115: =((M112*$H$21+M113*$H$22+M114*$H$23)*30)/1000000000 -> 1.1685 | N115: =((N112*$H$21+N113*$H$22+N114*$H$23)*30)/1000000000 -> 0.7402875 | O115: =((O112*$H$21+O113*$H$22+O114*$H$23)*30)/1000000000 -> 0.916398 | P115: =((P112*$H$21+P113*$H$22+P114*$H$23)*30)/1000000000 -> 2.08485 | Q115: =((Q112*$H$21+Q113*$H$22+Q114*$H$23)*30)/1000000000 -> 2.16972 | R115: =((R112*$H$21+R113*$H$22+R114*$H$23)*30)/1000000000 -> 0.93623325 | S115: =((S112*$H$21+S113*$H$22+S114*$H$23)*30)/1000000000 -> 1.1519361 | T115: =((T112*$H$21+T113*$H$22+T114*$H$23)*30)/1000000000 -> 0.8360079 | U115: =((U112*$H$21+U113*$H$22+U114*$H$23)*30)/1000000000 -> 0.8360079
C116: CCT | H116: K | I116: 2200 | J116: 2200 | K116: 2200 | L116: 2200 | M116: =M53 -> 3000 | N116: =N53 -> 3000 | O116: =O53 -> 3000 | P116: =P53 -> 3000 | Q116: =Q53 -> 4000 | R116: =R53 -> 3000 | S116: =S53 -> 4000 | T116: =T53 -> 1800 | U116: =U53 -> 2200
C117: Ratio G/R | H117: ADU | I117: =0.000000000001438*T^3-0.00000004555*T^2+0.0004093*T- 0.336 -> 0.359309824 | J117: =0.000000000001438*J116^3-0.00000004555*J116^2+0.0004093*J116- 0.336 -> 0.359309824 | K117: =0.000000000001438*K116^3-0.00000004555*K116^2+0.0004093*K116- 0.336 -> 0.359309824 | L117: 0.359309824 | M117: 0.520776 | N117: 0.520776 | O117: 0.520776 | P117: 0.520776 | Q117: 0.664432 | R117: 0.520776 | S117: 0.664432 | T117: 0.261544416 | U117: =0.000000000001438*U116^3-0.00000004555*U116^2+0.0004093*U116- 0.336 -> 0.359309824
C118: Ratio B/G | H118: ADU | I118: =0.000000000008061*T^3-0.0000001109*T^2 + 0.0005976*T - 0.6528 -> 0.210997528 | J118: =0.000000000008061*J116^3-0.0000001109*J116^2 + 0.0005976*J116 - 0.6528 -> 0.210997528 | K118: =0.000000000008061*K116^3-0.0000001109*K116^2 + 0.0005976*K116 - 0.6528 -> 0.210997528 | L118: 0.210997528 | M118: 0.359547 | N118: 0.359547 | O118: 0.359547 | P118: 0.359547 | Q118: 0.479104 | R118: 0.359547 | S118: 0.479104 | T118: 0.110575752 | U118: =0.000000000008061*U116^3-0.0000001109*U116^2 + 0.0005976*U116 - 0.6528 -> 0.210997528
C119: Ratio V(λ)/G | H119: Lm/W | I119: =-0.0000000000257*T^3 + 0.0000003866*T^2 - 0.001909*T + 4.273 -> 1.6706904 | J119: =-0.0000000000257*J116^3 + 0.0000003866*J116^2 - 0.001909*J116 + 4.273 -> 1.6706904 | K119: =-0.0000000000257*K116^3 + 0.0000003866*K116^2 - 0.001909*K116 + 4.273 -> 1.6706904 | L119: 1.6706904 | M119: 1.3315 | N119: 1.3315 | O119: 1.3315 | P119: 1.3315 | Q119: 1.1778 | R119: 1.3315 | S119: 1.1778 | T119: 1.9395016 | U119: =-0.0000000000257*U116^3 + 0.0000003866*U116^2 - 0.001909*U116 + 4.273 -> 1.6706904
C120: Blue light per lumen*** | H120: W/lm | I120: =I124*I118 -> 0.0001849101226 | J120: =J124*J118 -> 0.0001849101226 | K120: 0.0001849101226 | L120: 0.0001849101226 | M120: 0.0003953609713 | N120: 0.0003953609713 | O120: 0.0003953609713 | P120: 0.0003953609713 | Q120: 0.0005955764861 | R120: 0.0003953609713 | S120: 0.0005955764861 | T120: 8.347358305e-05 | U120: =U124*U118 -> 0.0001849101226
C121: Blue light emited per street light at full power | H121: W/sr m2 | I121: =I125*I$118 -> 3.328382206 | J121: =J125*J$118 -> 3.328382206 | K121: 3.328382206 | L121: 1.294370858 | M121: 3.755929227 | N121: 3.755929227 | O121: 4.649445022 | P121: 6.701368463 | Q121: 10.50596922 | R121: 4.333551606 | S121: 7.704377425 | T121: 0.8300613098 | U121: =U125*U$118 -> 1.838746259
C122: Blue light emited per street light at level 1 | H122: W/sr m2 | I122: =I126*I$118 -> 3.328382206 | J122: =J126*J$118 -> 2.662705765 | K122: 2.662705765 | L122: 0.9245506128 | M122: 3.755929227 | N122: 1.877964613 | O122: 2.324722511 | P122: 6.701368463 | Q122: 10.50596922 | R122: 3.440035811 | S122: 6.128482042 | T122: 0.4716257442 | U122: =U126*U$118 -> 1.044742192
C123: Blue light emited per street light at level 2 | H123: W/sr m2 | I123: =I127*I$118 -> 3.328382206 | J123: 2.662705765 | K123: 1.553245029 | L123: 0.9245506128 | M123: 3.755929227 | N123: 1.877964613 | O123: 2.324722511 | P123: 6.701368463 | Q123: 10.50596922 | R123: 2.233789488 | S123: 4.377487173 | T123: 0.4716257442 | U123: =U127*U$118 -> 1.044742192
C124: Green light per lumen*** | H124: W/lm | I124: =1/I119/683 -> 0.0008763615589 | J124: =1/J119/683 -> 0.0008763615589 | K124: 0.0008763615589 | L124: 0.0008763615589 | M124: 0.001099608594 | N124: 0.001099608594 | O124: 0.001099608594 | P124: 0.001099608594 | Q124: 0.001243104808 | R124: 0.001099608594 | S124: 0.001243104808 | T124: 0.0007548995285 | U124: =1/U119/683 -> 0.0008763615589
C125: Green light emited per street light at full power | H125: W/sr m2 | I125: =I112*I$124 -> 15.77450806 | J125: =J112*J$124 -> 15.77450806 | K125: 15.77450806 | L125: 6.134530912 | M125: 10.44628165 | N125: 10.44628165 | O125: 12.93139707 | P125: 18.63836567 | Q125: 21.92836882 | R125: 12.0528098 | S125: 16.0808038 | T125: 7.506720911 | U125: =U112*U$124 -> 8.714539341
C126: Green light emited per street light at level 1 | H126: W/sr m2 | I126: =I113*I$124 -> 15.77450806 | J126: =J113*J$124 -> 12.61960645 | K126: 12.61960645 | L126: 4.381807794 | M126: 10.44628165 | N126: 5.223140823 | O126: 6.465698535 | P126: 18.63836567 | Q126: 21.92836882 | R126: 9.567694379 | S126: 12.79154848 | T126: 4.265182336 | U126: =U113*U$124 -> 4.951442808
C127: Green light emited per street light at level 2 | H127: W/sr m2 | I127: =I114*I$124 -> 15.77450806 | J127: 12.61960645 | K127: 7.361437095 | L127: 4.381807794 | M127: 10.44628165 | N127: 5.223140823 | O127: 6.465698535 | P127: 18.63836567 | Q127: 21.92836882 | R127: 6.212788558 | S127: 9.136820342 | T127: 4.265182336 | U127: =U114*U$124 -> 4.951442808
C128: Red light per lumen*** | H128: W/lm | I128: =1/I117*I124 -> 0.002439013632 | J128: =1/J117*J124 -> 0.002439013632 | K128: 0.002439013632 | L128: 0.002439013632 | M128: 0.002111480933 | N128: 0.002111480933 | O128: 0.002111480933 | P128: 0.002111480933 | Q128: 0.001870928565 | R128: 0.002111480933 | S128: 0.001870928565 | T128: 0.002886314837 | U128: =1/U117*U124 -> 0.002439013632
C129: Red light emited per street light at full power | H129: W/sr m2 | I129: =I112*I$128 -> 43.90224538 | J129: =J112*J$128 -> 43.90224538 | K129: 43.90224538 | L129: 17.07309542 | M129: 20.05906886 | N129: 20.05906886 | O129: 24.83101577 | P129: 35.78960181 | Q129: 33.00317989 | R129: 23.14394251 | S129: 24.20233192 | T129: 28.70151474 | U129: =U112*U$128 -> 24.25355156
C130: Red light emited per street light at level 1 | H130: W/sr m2 | I130: =I113*I$128 -> 43.90224538 | J130: =J113*J$128 -> 35.1217963 | K130: 35.1217963 | L130: 12.19506816 | M130: 20.05906886 | N130: 10.02953443 | O130: 12.41550789 | P130: 35.78960181 | Q130: 33.00317989 | R130: 18.3719956 | S130: 19.25185494 | T130: 16.30767883 | U130: =U113*U$128 -> 13.78042702
C131: Red light emited per street light at level 2 | H131: W/sr m2 | I131: =I114*I$128 -> 43.90224538 | J131: 35.1217963 | K131: 20.48771451 | L131: 12.19506816 | M131: 20.05906886 | N131: 10.02953443 | O131: 12.41550789 | P131: 35.78960181 | Q131: 33.00317989 | R131: 11.92986727 | S131: 13.75132495 | T131: 16.30767883 | U131: =U114*U$128 -> 13.78042702
C132: ULOR (Check note) | H132: % | I132: =IF(I56="Rural",I55,I55/2) -> 0.05 | J132: =IF(J56="Rural",J55,J55/2) -> 0.05 | K132: 0.05 | L132: 0.05 | M132: 0 | N132: 0 | O132: 0 | P132: 0 | Q132: 0 | R132: 0 | S132: 0 | T132: 0 | U132: =IF(U56="Rural",U55,U55/2) -> 0
C133: Reflectance asfalt | H133: % | I133: 0.1 | J133: 0.1 | K133: 0.1 | L133: 0.1 | M133: 0.1 | N133: 0.1 | O133: 0.1 | P133: 0.1 | Q133: 0.1 | R133: 0.1 | S133: 0.1 | T133: 0.1 | U133: 0.1
C134: Reflectance snow | H134: % | I134: 0.9 | J134: 0.9 | K134: 0.9 | L134: 0.9 | M134: 0.9 | N134: 0.9 | O134: 0.9 | P134: 0.9 | Q134: 0.9 | R134: 0.9 | S134: 0.9 | T134: 0.9 | U134: 0.9
C135: Light emited to the street Full power one street light | H135: Lumen | I135: =I112*(1-I$132) -> 17100 | J135: =J112*(1-J$132) -> 17100 | K135: 17100 | L135: 6650 | M135: 9500 | N135: 9500 | O135: 11760 | P135: 16950 | Q135: 17640 | R135: 10961 | S135: 12936 | T135: 9944 | U135: =U112*(1-U$132) -> 9944
C136: Light emitedto the street asfalt Level 1 one street light | H136: Lumen | I136: =I113*(1-I$132) -> 17100 | J136: =J113*(1-J$132) -> 13680 | K136: 13680 | L136: 4750 | M136: 9500 | N136: 4750 | O136: 5880 | P136: 16950 | Q136: 17640 | R136: 8701 | S136: 10290 | T136: 5650 | U136: =U113*(1-U$132) -> 5650
C137: Light emited to the street asfalt Level 2 one street light | H137: Lumen | I137: =I114*(1-I$132) -> 17100 | J137: 13680 | K137: 7980 | L137: 4750 | M137: 9500 | N137: 4750 | O137: 5880 | P137: 16950 | Q137: 17640 | R137: 5650 | S137: 7350 | T137: 5650 | U137: =U114*(1-U$132) -> 5650
C138: Light emited to the space asfalt Full power one street light | H138: Lumen | I138: =I112*I$132+I112*(1-I$132)*I$133 -> 2610 | J138: =J112*J$132+J112*(1-J$132)*J$133 -> 2610 | K138: 2610 | L138: 1015 | M138: 950 | N138: 950 | O138: 1176 | P138: 1695 | Q138: 1764 | R138: 1096.1 | S138: 1293.6 | T138: 994.4 | U138: =U112*U$132+U112*(1-U$132)*U$133 -> 994.4
C139: Light emited to the space asfalt Level 1 one street light | H139: Lumen | I139: =I113*I$132+I113*(1-I$132)*I$133 -> 2610 | J139: =J113*J$132+J113*(1-J$132)*J$133 -> 2088 | K139: 2088 | L139: 725 | M139: 950 | N139: 475 | O139: 588 | P139: 1695 | Q139: 1764 | R139: 870.1 | S139: 1029 | T139: 565 | U139: =U113*U$132+U113*(1-U$132)*U$133 -> 565
C140: Light emited to the space asfalt Level 2 one street light | H140: Lumen | I140: =I114*I$132+I114*(1-I$132)*I$133 -> 2610 | J140: =J114*J$132+J114*(1-J$132)*J$133 -> 2088 | K140: 1218 | L140: 725 | M140: 950 | N140: 475 | O140: 588 | P140: 1695 | Q140: 1764 | R140: 565 | S140: 735 | T140: 565 | U140: =U114*U$132+U114*(1-U$132)*U$133 -> 565
C141: Light emited to the space snow Full power one street light | H141: Lumen | I141: =I112*I$132+I112*(1-I$132)*I$134 -> 16290 | J141: =J112*J$132+J112*(1-J$132)*J$134 -> 16290 | K141: 16290 | L141: 6335 | M141: 8550 | N141: 8550 | O141: 10584 | P141: 15255 | Q141: 15876 | R141: 9864.9 | S141: 11642.4 | T141: 8949.6 | U141: =U112*U$132+U112*(1-U$132)*U$134 -> 8949.6
C142: Light emited to the space snow Level 1 one street light | H142: Lumen | I142: =I113*I$132+I113*(1-I$132)*I$134 -> 16290 | J142: =J113*J$132+J113*(1-J$132)*J$134 -> 13032 | K142: 13032 | L142: 4525 | M142: 8550 | N142: 4275 | O142: 5292 | P142: 15255 | Q142: 15876 | R142: 7830.9 | S142: 9261 | T142: 5085 | U142: =U113*U$132+U113*(1-U$132)*U$134 -> 5085
C143: Light emited to the space snow Level 2 one street light | H143: Lumen | I143: =I114*I$132+I114*(1-I$132)*I$134 -> 16290 | J143: =J114*J$132+J114*(1-J$132)*J$134 -> 13032 | K143: 7602 | L143: 4525 | M143: 8550 | N143: 4275 | O143: 5292 | P143: 15255 | Q143: 15876 | R143: 5085 | S143: 6615 | T143: 5085 | U143: =U114*U$132+U114*(1-U$132)*U$134 -> 5085
C144: Blue light emited per street light at full power asfalt | H144: W/sr m2 | I144: =I147*I$118 -> 329.6263318 | J144: =J147*J$118 -> 329.6263318 | K144: 329.6263318 | L144: 128.1880179 | M144: 256.5299662 | N144: 256.5299662 | O144: 317.557095 | P144: 457.703466 | Q144: 717.5576974 | R144: 295.9815747 | S144: 526.2089781 | T144: 56.69318746 | U144: =U147*U$118 -> 125.5863695
C145: Blue light emited per street light at level 1 asfalt | H145: W/sr m2 | I145: =I148*I$118 -> 329.6263318 | J145: =J148*J$118 -> 263.7010654 | K145: 263.7010654 | L145: 91.56286994 | M145: 256.5299662 | N145: 128.2649831 | O145: 158.7785475 | P145: 457.703466 | Q145: 717.5576974 | R145: 234.9544459 | S145: 418.5753235 | T145: 32.21203833 | U145: =U148*U$118 -> 71.35589174
C146: Blue light emited per street light at level 2 asfalt | H146: W/sr m2 | I146: =I149*I$118 -> 329.6263318 | J146: 263.7010654 | K146: 153.8256215 | L146: 91.56286994 | M146: 256.5299662 | N146: 128.2649831 | O146: 158.7785475 | P146: 457.703466 | Q146: 717.5576974 | R146: 152.567822 | S146: 298.9823739 | T146: 32.21203833 | U146: =U149*U$118 -> 71.35589174
C147: Green light emited per street light at full power asfalt | H147: W/sr m2 | I147: =I138/I$119 -> 1562.228406 | J147: =J138/J$119 -> 1562.228406 | K147: 1562.228406 | L147: 607.5332689 | M147: 713.4810364 | N147: 713.4810364 | O147: 883.2144198 | P147: 1273.000376 | Q147: 1497.70759 | R147: 823.2069095 | S147: 1098.3189 | T147: 512.7090382 | U147: =U138/U$119 -> 595.203037
C148: Green light emited per street light at level 1 asfalt | H148: W/sr m2 | I148: =I139/I$119 -> 1562.228406 | J148: =J139/J$119 -> 1249.782725 | K148: 1249.782725 | L148: 433.9523349 | M148: 713.4810364 | N148: 356.7405182 | O148: 441.6072099 | P148: 1273.000376 | Q148: 1497.70759 | R148: 653.4735261 | S148: 873.6627611 | T148: 291.3119535 | U148: =U139/U$119 -> 338.1835438
C149: Green light emited per street light at level 2 asfalt | H149: W/sr m2 | I149: =I140/I$119 -> 1562.228406 | J149: 1249.782725 | K149: 729.0399227 | L149: 433.9523349 | M149: 713.4810364 | N149: 356.7405182 | O149: 441.6072099 | P149: 1273.000376 | Q149: 1497.70759 | R149: 424.3334585 | S149: 624.0448293 | T149: 291.3119535 | U149: =U140/U$119 -> 338.1835438
C150: Red light emited per street light at full power asfalt | H150: W/sr m2 | I150: =I147/I$117 -> 4347.858871 | J150: =J147/J$117 -> 4347.858871 | K150: 4347.858871 | L150: 1690.834005 | M150: 1370.034403 | N150: 1370.034403 | O150: 1695.958377 | P150: 2444.429804 | Q150: 2254.117186 | R150: 1580.731273 | S150: 1653.01927 | T150: 1960.313457 | U150: =U147/U$117 -> 1656.517571
C151: Red light emited per street light at level 1 asfalt | H151: W/sr m2 | I151: =I148/I$117 -> 4347.858871 | J151: =J148/J$117 -> 3478.287097 | K151: 3478.287097 | L151: 1207.738575 | M151: 1370.034403 | N151: 685.0172017 | O151: 847.9791886 | P151: 2444.429804 | Q151: 2254.117186 | R151: 1254.807299 | S151: 1314.901692 | T151: 1113.814464 | U151: =U148/U$117 -> 941.2031655
C152: Red light emited per street light at level 2 asfalt | H152: W/sr m2 | I152: =I149/I$117 -> 4347.858871 | J152: 3478.287097 | K152: 2029.000806 | L152: 1207.738575 | M152: 1370.034403 | N152: 685.0172017 | O152: 847.9791886 | P152: 2444.429804 | Q152: 2254.117186 | R152: 814.8099346 | S152: 939.2154944 | T152: 1113.814464 | U152: =U149/U$117 -> 941.2031655
C153: Blue light emited per street light at full power snow | H153: W/sr m2 | I153: =I156*I$118 -> 2057.322967 | J153: =J156*J$118 -> 2057.322967 | K153: 2057.322967 | L153: 800.0700428 | M153: 2308.769696 | N153: 2308.769696 | O153: 2858.013855 | P153: 4119.331194 | Q153: 6458.019277 | R153: 2663.834172 | S153: 4735.880803 | T153: 510.2386871 | U153: =U156*U$118 -> 1130.277325
C154: Blue light emited per street light at level 1 snow | H154: W/sr m2 | I154: =I157*I$118 -> 2057.322967 | J154: =J157*J$118 -> 1645.858374 | K154: 1645.858374 | L154: 571.478602 | M154: 2308.769696 | N154: 1154.384848 | O154: 1429.006928 | P154: 4119.331194 | Q154: 6458.019277 | R154: 2114.590013 | S154: 3767.177911 | T154: 289.908345 | U154: =U157*U$118 -> 642.2030257
C155: Blue light emited per street light at level 2 snow | H155: W/sr m2 | I155: =I158*I$118 -> 2057.322967 | J155: =J158*J$118 -> 1645.858374 | K155: 960.0840514 | L155: 571.478602 | M155: 2308.769696 | N155: 1154.384848 | O155: 1429.006928 | P155: 4119.331194 | Q155: 6458.019277 | R155: 1373.110398 | S155: 2690.841365 | T155: 289.908345 | U155: =U158*U$118 -> 642.2030257
C156: Green light emited per street light at full power snow | H156: W/sr m2 | I156: =I141/I$119 -> 9750.460049 | J156: =J141/J$119 -> 9750.460049 | K156: 9750.460049 | L156: 3791.845575 | M156: 6421.329328 | N156: 6421.329328 | O156: 7948.929778 | P156: 11457.00338 | Q156: 13479.36831 | R156: 7408.862186 | S156: 9884.870097 | T156: 4614.381344 | U156: =U141/U$119 -> 5356.827333
C157: Green light emited per street light at level 1 snow | H157: W/sr m2 | I157: =I142/I$119 -> 9750.460049 | J157: =J142/J$119 -> 7800.368039 | K157: 7800.368039 | L157: 2708.461125 | M157: 6421.329328 | N157: 3210.664664 | O157: 3974.464889 | P157: 11457.00338 | Q157: 13479.36831 | R157: 5881.261735 | S157: 7862.96485 | T157: 2621.807582 | U157: =U142/U$119 -> 3043.651894
C158: Green light emited per street light at level 2 snow | H158: W/sr m2 | I158: =I143/I$119 -> 9750.460049 | J158: 7800.368039 | K158: 4550.21469 | L158: 2708.461125 | M158: 6421.329328 | N158: 3210.664664 | O158: 3974.464889 | P158: 11457.00338 | Q158: 13479.36831 | R158: 3819.001127 | S158: 5616.403464 | T158: 2621.807582 | U158: =U143/U$119 -> 3043.651894
C159: Red light emited per street light at full power snow | H159: W/sr m2 | I159: =I156/I$117 -> 27136.6364 | J159: =J156/J$117 -> 27136.6364 | K159: 27136.6364 | L159: 10553.13638 | M159: 12330.30963 | N159: 12330.30963 | O159: 15263.62539 | P159: 21999.86823 | Q159: 20287.05468 | R159: 14226.58146 | S159: 14877.17343 | T159: 17642.82111 | U159: =U156/U$117 -> 14908.65814
C160: Red light emited per street light at level 1 snow | H160: W/sr m2 | I160: =I157/I$117 -> 27136.6364 | J160: =J157/J$117 -> 21709.30912 | K160: 21709.30912 | L160: 7537.954556 | M160: 12330.30963 | N160: 6165.154815 | O160: 7631.812697 | P160: 21999.86823 | Q160: 20287.05468 | R160: 11293.26569 | S160: 11834.11523 | T160: 10024.33018 | U160: =U157/U$117 -> 8470.82849
C161: Red light emited per street light at level 2 snow | H161: W/sr m2 | I161: =I158/I$117 -> 27136.6364 | J161: 21709.30912 | K161: 12663.76365 | L161: 7537.954556 | M161: 12330.30963 | N161: 6165.154815 | O161: 7631.812697 | P161: 21999.86823 | Q161: 20287.05468 | R161: 7333.289411 | S161: 8452.939449 | T161: 10024.33018 | U161: =U158/U$117 -> 8470.82849
B162: TOTAL LIGHT POLLUTION per level
C163: Blue light emited per street light at full power asfalt | H163: W/sr m2 | I163: =I144*I$70 -> 164813.1659 | J163: =J144*J$70 -> 164813.1659 | K163: 164813.1659 | L163: 64094.00896 | M163: 128264.9831 | N163: 128264.9831 | O163: 158778.5475 | P163: 228851.733 | Q163: 358778.8487 | R163: 147990.7873 | S163: 263104.489 | T163: 28346.59373 | U163: =U144*U$70 -> 62793.18473
C164: Blue light emited per instalation at level 1 asfalt | H164: W/sr m2 | I164: =I145*I$70 -> 164813.1659 | J164: 131850.5327 | K164: 131850.5327 | L164: 45781.43497 | M164: 128264.9831 | N164: 64132.49155 | O164: 79389.27375 | P164: 228851.733 | Q164: 358778.8487 | R164: 117477.2229 | S164: 209287.6617 | T164: 16106.01916 | U164: =U145*U$70 -> 35677.94587
C165: Blue light emited per instalation at level 2 asfalt | H165: W/sr m2 | I165: =I146*I$70 -> 164813.1659 | J165: 131850.5327 | K165: 76912.81075 | L165: 45781.43497 | M165: 128264.9831 | N165: 64132.49155 | O165: 79389.27375 | P165: 228851.733 | Q165: 358778.8487 | R165: 76283.911 | S165: 149491.187 | T165: 16106.01916 | U165: =U146*U$70 -> 35677.94587
C166: Green light emited per instalation at full power asfalt | H166: W/sr m2 | I166: =I147*I$70 -> 781114.2028 | J166: 781114.2028 | K166: 781114.2028 | L166: 303766.6344 | M166: 356740.5182 | N166: 356740.5182 | O166: 441607.2099 | P166: 636500.1878 | Q166: 748853.7952 | R166: 411603.4548 | S166: 549159.4498 | T166: 256354.5191 | U166: =U147*U$70 -> 297601.5185
C167: Green light emited per instalation at level 1 asfalt | H167: W/sr m2 | I167: =I148*I$70 -> 781114.2028 | J167: 624891.3623 | K167: 624891.3623 | L167: 216976.1675 | M167: 356740.5182 | N167: 178370.2591 | O167: 220803.605 | P167: 636500.1878 | Q167: 748853.7952 | R167: 326736.763 | S167: 436831.3805 | T167: 145655.9768 | U167: =U148*U$70 -> 169091.7719
C168: Green light emited per instalation at level 2 asfalt | H168: W/sr m2 | I168: =I149*I$70 -> 781114.2028 | J168: 624891.3623 | K168: 364519.9613 | L168: 216976.1675 | M168: 356740.5182 | N168: 178370.2591 | O168: 220803.605 | P168: 636500.1878 | Q168: 748853.7952 | R168: 212166.7293 | S168: 312022.4147 | T168: 145655.9768 | U168: =U149*U$70 -> 169091.7719
C169: Red light emited per instalation at full power asfalt | H169: W/sr m2 | I169: =I150*I$70 -> 2173929.435 | J169: 2173929.435 | K169: 2173929.435 | L169: 845417.0027 | M169: 685017.2017 | N169: 685017.2017 | O169: 847979.1886 | P169: 1222214.902 | Q169: 1127058.593 | R169: 790365.6366 | S169: 826509.635 | T169: 980156.7284 | U169: =U150*U$70 -> 828258.7857
C170: Red light emited per instalation at level 1 asfalt | H170: W/sr m2 | I170: =I151*I$70 -> 2173929.435 | J170: 1739143.548 | K170: 1739143.548 | L170: 603869.2876 | M170: 685017.2017 | N170: 342508.6008 | O170: 423989.5943 | P170: 1222214.902 | Q170: 1127058.593 | R170: 627403.6496 | S170: 657450.846 | T170: 556907.232 | U170: =U151*U$70 -> 470601.5828
C171: Red light emited per instalation at level 2 asfalt | H171: W/sr m2 | I171: =I152*I$70 -> 2173929.435 | J171: 1739143.548 | K171: 1014500.403 | L171: 603869.2876 | M171: 685017.2017 | N171: 342508.6008 | O171: 423989.5943 | P171: 1222214.902 | Q171: 1127058.593 | R171: 407404.9673 | S171: 469607.7472 | T171: 556907.232 | U171: =U152*U$70 -> 470601.5828
C172: Blue light emited per instalation at full power snow | H172: W/sr m2 | I172: =I153*I$70 -> 1028661.484 | J172: 1028661.484 | K172: 1028661.484 | L172: 400035.0214 | M172: 1154384.848 | N172: 1154384.848 | O172: 1429006.928 | P172: 2059665.597 | Q172: 3229009.638 | R172: 1331917.086 | S172: 2367940.401 | T172: 255119.3436 | U172: =U153*U$70 -> 565138.6626
C173: Blue light emited per instalation at level 1 snow | H173: W/sr m2 | I173: =I154*I$70 -> 1028661.484 | J173: 822929.1869 | K173: 822929.1869 | L173: 285739.301 | M173: 1154384.848 | N173: 577192.424 | O173: 714503.4638 | P173: 2059665.597 | Q173: 3229009.638 | R173: 1057295.006 | S173: 1883588.956 | T173: 144954.1725 | U173: =U154*U$70 -> 321101.5128
C174: Blue light emited per instalation at level 2 snow | H174: W/sr m2 | I174: =I155*I$70 -> 1028661.484 | J174: 822929.1869 | K174: 480042.0257 | L174: 285739.301 | M174: 1154384.848 | N174: 577192.424 | O174: 714503.4638 | P174: 2059665.597 | Q174: 3229009.638 | R174: 686555.199 | S174: 1345420.683 | T174: 144954.1725 | U174: =U155*U$70 -> 321101.5128
C175: Green light emited per instalation at full power snow | H175: W/sr m2 | I175: =I156*I$70 -> 4875230.025 | J175: 4875230.025 | K175: 4875230.025 | L175: 1895922.787 | M175: 3210664.664 | N175: 3210664.664 | O175: 3974464.889 | P175: 5728501.69 | Q175: 6739684.157 | R175: 3704431.093 | S175: 4942435.048 | T175: 2307190.672 | U175: =U156*U$70 -> 2678413.667
C176: Green light emited per instalation at level 1 snow | H176: W/sr m2 | I176: =I157*I$70 -> 4875230.025 | J176: 3900184.02 | K176: 3900184.02 | L176: 1354230.562 | M176: 3210664.664 | N176: 1605332.332 | O176: 1987232.445 | P176: 5728501.69 | Q176: 6739684.157 | R176: 2940630.867 | S176: 3931482.425 | T176: 1310903.791 | U176: =U157*U$70 -> 1521825.947
C177: Green light emited per instalation at level 2 snow | H177: W/sr m2 | I177: =I158*I$70 -> 4875230.025 | J177: 3900184.02 | K177: 2275107.345 | L177: 1354230.562 | M177: 3210664.664 | N177: 1605332.332 | O177: 1987232.445 | P177: 5728501.69 | Q177: 6739684.157 | R177: 1909500.563 | S177: 2808201.732 | T177: 1310903.791 | U177: =U158*U$70 -> 1521825.947
C178: Red light emited per instalation at full power snow | H178: W/sr m2 | I178: =I159*I$70 -> 13568318.2 | J178: 13568318.2 | K178: 13568318.2 | L178: 5276568.189 | M178: 6165154.815 | N178: 6165154.815 | O178: 7631812.697 | P178: 10999934.12 | Q178: 10143527.34 | R178: 7113290.729 | S178: 7438586.715 | T178: 8821410.556 | U178: =U159*U$70 -> 7454329.071
C179: Red light emited per instalation at level 1 snow | H179: W/sr m2 | I179: =I160*I$70 -> 13568318.2 | J179: 10854654.56 | K179: 10854654.56 | L179: 3768977.278 | M179: 6165154.815 | N179: 3082577.407 | O179: 3815906.349 | P179: 10999934.12 | Q179: 10143527.34 | R179: 5646632.847 | S179: 5917057.614 | T179: 5012165.088 | U179: =U160*U$70 -> 4235414.245
C180: Red light emited per instalation at level 2 snow | H180: W/sr m2 | I180: =I161*I$70 -> 13568318.2 | J180: 10854654.56 | K180: 6331881.827 | L180: 3768977.278 | M180: 6165154.815 | N180: 3082577.407 | O180: 3815906.349 | P180: 10999934.12 | Q180: 10143527.34 | R180: 3666644.706 | S180: 4226469.725 | T180: 5012165.088 | U180: =U161*U$70 -> 4235414.245
B181: TOTAL LIGHT POLLUTION
C182: Blue light emited per instalation at full power asfalt | H182: MWh/sr m2 | I182: =(I163*$H$21+I164*$H$22+I165*$H$23)/1000000 -> 675.7339801 | J182: =(J163*$H$21+J164*$H$22+J165*$H$23)/1000000 -> 576.6812674 | K182: =(K163*$H$21+K164*$H$22+K165*$H$23)/1000000 -> 451.69795 | L182: =(L163*$H$21+L164*$H$22+L165*$H$23)/1000000 -> 207.7561519 | M182: =(M163*$H$21+M164*$H$22+M165*$H$23)/1000000 -> 525.8864307 | N182: =(N163*$H$21+N164*$H$22+N165*$H$23)/1000000 -> 333.1682936 | O182: =(O163*$H$21+O164*$H$22+O165*$H$23)/1000000 -> 412.4272771 | P182: =(P163*$H$21+P164*$H$22+P165*$H$23)/1000000 -> 938.2921053 | Q182: =(Q163*$H$21+Q164*$H$22+Q165*$H$23)/1000000 -> 1470.99328 | R182: =(R163*$H$21+R164*$H$22+R165*$H$23)/1000000 -> 421.3541824 | S182: =(S163*$H$21+S164*$H$22+S165*$H$23)/1000000 -> 780.9718589 | T182: =(T163*$H$21+T164*$H$22+T165*$H$23)/1000000 -> 79.43810773 | U182: =(U163*$H$21+U164*$H$22+U165*$H$23)/1000000 -> 175.9707646
C183: Green light emited per instalation at full power asfalt | H183: MWh/sr m2 | I183: =(I166*$H$21+I167*$H$22+I168*$H$23)/1000000 -> 3202.568232 | J183: =(J166*$H$21+J167*$H$22+J168*$H$23)/1000000 -> 2733.118596 | K183: =(K166*$H$21+K167*$H$22+K168*$H$23)/1000000 -> 2140.773659 | L183: =(L166*$H$21+L167*$H$22+L168*$H$23)/1000000 -> 984.6378479 | M183: =(M166*$H$21+M167*$H$22+M168*$H$23)/1000000 -> 1462.636125 | N183: =(N166*$H$21+N167*$H$22+N168*$H$23)/1000000 -> 926.6334961 | O183: =(O166*$H$21+O167*$H$22+O168*$H$23)/1000000 -> 1147.074728 | P183: =(P166*$H$21+P167*$H$22+P168*$H$23)/1000000 -> 2609.65077 | Q183: =(Q166*$H$21+Q167*$H$22+Q168*$H$23)/1000000 -> 3070.30056 | R183: =(R166*$H$21+R167*$H$22+R168*$H$23)/1000000 -> 1171.902929 | S183: =(S166*$H$21+S167*$H$22+S168*$H$23)/1000000 -> 1630.067499 | T183: =(T166*$H$21+T167*$H$22+T168*$H$23)/1000000 -> 718.4044086 | U183: =(U166*$H$21+U167*$H$22+U168*$H$23)/1000000 -> 833.9944373
C184: Red light emited per instalation at full power asfalt | H184: MWh/sr m2 | I184: =(I169*$H$21+I170*$H$22+I171*$H$23)/1000000 -> 8913.110685 | J184: =(J169*$H$21+J170*$H$22+J171*$H$23)/1000000 -> 7606.579095 | K184: =(K169*$H$21+K170*$H$22+K171*$H$23)/1000000 -> 5958.015939 | L184: =(L169*$H$21+L170*$H$22+L171*$H$23)/1000000 -> 2740.358827 | M184: =(M169*$H$21+M170*$H$22+M171*$H$23)/1000000 -> 2808.570527 | N184: =(N169*$H$21+N170*$H$22+N171*$H$23)/1000000 -> 1779.332181 | O184: =(O169*$H$21+O170*$H$22+O171*$H$23)/1000000 -> 2202.625942 | P184: =(P169*$H$21+P170*$H$22+P171*$H$23)/1000000 -> 5011.081098 | Q184: =(Q169*$H$21+Q170*$H$22+Q171*$H$23)/1000000 -> 4620.940232 | R184: =(R169*$H$21+R170*$H$22+R171*$H$23)/1000000 -> 2250.301337 | S184: =(S169*$H$21+S170*$H$22+S171*$H$23)/1000000 -> 2453.324793 | T184: =(T169*$H$21+T170*$H$22+T171*$H$23)/1000000 -> 2746.77785 | U184: =(U169*$H$21+U170*$H$22+U171*$H$23)/1000000 -> 2321.101127
C185: Blue light emited per instalation at full power snow | H185: MWh/sr m2 | I185: =(I172*$H$21+I173*$H$22+I174*$H$23)/1000000 -> 4217.512083 | J185: =(J172*$H$21+J173*$H$22+J174*$H$23)/1000000 -> 3599.286531 | K185: =(K172*$H$21+K173*$H$22+K174*$H$23)/1000000 -> 2819.218239 | L185: =(L172*$H$21+L173*$H$22+L174*$H$23)/1000000 -> 1296.684948 | M185: =(M172*$H$21+M173*$H$22+M174*$H$23)/1000000 -> 4732.977876 | N185: =(N172*$H$21+N173*$H$22+N174*$H$23)/1000000 -> 2998.514642 | O185: =(O172*$H$21+O173*$H$22+O174*$H$23)/1000000 -> 3711.845494 | P185: =(P172*$H$21+P173*$H$22+P174*$H$23)/1000000 -> 8444.628948 | Q185: =(Q172*$H$21+Q173*$H$22+Q174*$H$23)/1000000 -> 13238.93952 | R185: =(R172*$H$21+R173*$H$22+R174*$H$23)/1000000 -> 3792.187642 | S185: =(S172*$H$21+S173*$H$22+S174*$H$23)/1000000 -> 7028.74673 | T185: =(T172*$H$21+T173*$H$22+T174*$H$23)/1000000 -> 714.9429695 | U185: =(U172*$H$21+U173*$H$22+U174*$H$23)/1000000 -> 1583.736882
C186: Green light emited per instalation at full power snow | H186: MWh/sr m2 | I186: =(I175*$H$21+I176*$H$22+I177*$H$23)/1000000 -> 19988.4431 | J186: =(J173*$H$21+J174*$H$22+J175*$H$23)/1000000 -> 12592.99407 | K186: =(K173*$H$21+K174*$H$22+K175*$H$23)/1000000 -> 12342.68644 | L186: =(L173*$H$21+L174*$H$22+L175*$H$23)/1000000 -> 4834.698566 | M186: =(M173*$H$21+M174*$H$22+M175*$H$23)/1000000 -> 9411.014458 | N186: =(N173*$H$21+N174*$H$22+N175*$H$23)/1000000 -> 8357.638284 | O186: =(O173*$H$21+O174*$H$22+O175*$H$23)/1000000 -> 10345.87644 | P186: =(P173*$H$21+P174*$H$22+P175*$H$23)/1000000 -> 16791.23106 | Q186: =(Q173*$H$21+Q174*$H$22+Q175*$H$23)/1000000 -> 21225.72405 | R186: =(R173*$H$21+R174*$H$22+R175*$H$23)/1000000 -> 10086.50406 | S186: =(S173*$H$21+S174*$H$22+S175*$H$23)/1000000 -> 14288.72674 | T186: =(T173*$H$21+T174*$H$22+T175*$H$23)/1000000 -> 5513.400144 | U186: =(U173*$H$21+U174*$H$22+U175*$H$23)/1000000 -> 6679.401352
C187: Red light emited per instalation at full power snow | H187: MWh/sr m2 | I187: =(I178*$H$21+I179*$H$22+I180*$H$23)/1000000 -> 55630.10462 | J187: =(J178*$H$21+J179*$H$22+J180*$H$23)/1000000 -> 47475.54538 | K187: =(K178*$H$21+K179*$H$22+K180*$H$23)/1000000 -> 37186.23742 | L187: =(L178*$H$21+L179*$H$22+L180*$H$23)/1000000 -> 17103.61889 | M187: =(M178*$H$21+M179*$H$22+M180*$H$23)/1000000 -> 25277.13474 | N187: =(N178*$H$21+N179*$H$22+N180*$H$23)/1000000 -> 16013.98963 | O187: =(O178*$H$21+O179*$H$22+O180*$H$23)/1000000 -> 19823.63348 | P187: =(P178*$H$21+P179*$H$22+P180*$H$23)/1000000 -> 45099.72988 | Q187: =(Q178*$H$21+Q179*$H$22+Q180*$H$23)/1000000 -> 41588.46209 | R187: =(R178*$H$21+R179*$H$22+R180*$H$23)/1000000 -> 20252.71203 | S187: =(S178*$H$21+S179*$H$22+S180*$H$23)/1000000 -> 22079.92314 | T187: =(T178*$H$21+T179*$H$22+T180*$H$23)/1000000 -> 24721.00065 | U187: =(U178*$H$21+U179*$H$22+U180*$H$23)/1000000 -> 20889.91014
B188: Manofacturing impact
B189: Manofacturing impact per Glmh ** | H189: kg co2 eq. | I189: 175 | J189: 175 | K189: 175 | L189: 175 | M189: 822 | N189: 822 | O189: 822 | P189: 822 | Q189: 822 | R189: 822 | S189: 822 | T189: 822 | U189: 823
B190: Manofacturing impact in live time | H190: kg co2 eq. | I190: =(I189*I115*I29) -> 193725 | J190: =J189*J115*J29 -> 165327.75 | K190: =K189*K115*K29 -> 129496.5 | L190: =L189*L115*L29 -> 59561.25 | M190: =M189*M115*M29 -> 480253.5 | N190: =N189*N115*N29 -> 304258.1625 | O190: =O189*O115*O29 -> 376639.578 | P190: =P189*P115*P29 -> 856873.35 | Q190: =Q189*Q115*Q29 -> 891754.92 | R190: =R189*R115*R29 -> 384791.8657 | S190: =S189*S115*S29 -> 473445.7371 | T190: =T189*T115*T29 -> 343599.2469 | U190: =U189*U115*U29 -> 344017.2509
B191: Total CO2 Emited electricity | H191: Tm co2 eq. | I191: =(I192*1000-I190)/1000 -> 3828.375 | J191: =(J192*1000-J190)/1000 -> 3267.19125 | K191: 2559.0975 | L191: 1412.4525 | M191: 2552.25 | N191: 1616.94375 | O191: 1293.555 | P191: 3828.375 | Q191: 3062.7 | R191: 1719.189375 | S191: 1626.03225 | T191: 1535.14725 | U191: =(U192*1000-U190)/1000 -> 1535.14725
B192: Total CO2 Emited all included ***** | H192: Tm co2 eq. | I192: =(I64*I47)/1000 -> 4022.1 | J192: =(J64*J47)/1000 -> 3432.519 | K192: =(K64*K47)/1000 -> 2688.594 | L192: =(L64*L47)/1000 -> 1472.01375 | M192: =(M64*M47)/1000 -> 3032.5035 | N192: =(N64*N47)/1000 -> 1921.201913 | O192: =(O64*O47)/1000 -> 1670.194578 | P192: =(P64*P47)/1000 -> 4685.24835 | Q192: =(Q64*Q47)/1000 -> 3954.45492 | R192: =(R64*R47)/1000 -> 2103.981241 | S192: =(S64*S47)/1000 -> 2099.477987 | T192: =(T64*T47)/1000 -> 1878.746497 | U192: =(U64*U47)/1000 -> 1879.164501
B194: * Phillips Master SON-T PIA Plus
B195: ** Tähkämö, L., & Halonen, L. (2015). Life cycle assessment of road lighting luminaires–comparison of light-emitting diode and high-pressure sodium technologies. Journal of Cleaner Production, 93, 234-242.
B196: *** Sánchez de Miguel, A. , Kyba, C. C., Aubé, M., Zamorano, J., Cardiel, N., Tapia, C., ... & Gaston, K. J. (2019). Colour remote sensing of the impact of artificial light at night (I): The potential of the International Space Station and other DSLR-based platforms. Remote sensing of environment, 224, 92-103.
B197: ***** Manofacturing impact included
B198: ULOR -> Acording with Martin Aubé, when street lights are on tall buildings higher than the streetlights this value should be reduced by 50%. https://www.iau.org/static/archives/images/pdf/light-pollution-brochure.pdf

Sheet 3. Result
G2: ='1. Introduction'!G2 -> LCC-calculation for procurement of outdoor lighting systems
G3: ='1. Introduction'!G3 -> Version 2.14
G4: ='1. Introduction'!G4 -> Date: 2022-05-10
B9: Result LCC-calculation for procurement of outdoor lighting systems | R9: Page 1 of 2 | X9: Result LCC-calculation for procurement of outdoor lighting systems | AN9: Page 2 of 2
B10: Project: | D10: ='2. LCC-calc.'!F11 -> Scenario 1 | X10: Project: | Z10: =IF(ISBLANK(D10),"",D10) -> Scenario 1
B11: Date: | D11: ='2. LCC-calc.'!F12 -> 05/04/2022 | X11: Date: | Z11: =IF(ISBLANK(D11),"",D11) -> 05/04/2022
B12: Administrator: | D12: ='2. LCC-calc.'!F13 -> 0 | X12: Administrator: | Z12: 0
B14: Calculation based upon | E14: ='2. LCC-calc.'!H15 -> 30 | F14: year | H14: Discount rate | J14: ='2. LCC-calc.'!H16 -> 0.0175 | L14: The result is calculated according to present value method | X14: Calculation based upon | AA14: =E14 -> 30 | AB14: year | AD14: Discount rate | AF14: =J14 -> 0.0175
B16: LCC-costs | F16: =IF(ISNA(HLOOKUP(F17,'2. LCC-calc.'!$I$59:$XFD$108,2,FALSE)) = TRUE, "",HLOOKUP(F17,'2. LCC-calc.'!$I$59:$XFD$108,2,FALSE)) -> HPS 70W standar diming | I16: =IF(ISNA(HLOOKUP(I17,'2. LCC-calc.'!$I$59:$XFD$108,2,FALSE)) = TRUE, "",HLOOKUP(I17,'2. LCC-calc.'!$I$59:$XFD$108,2,FALSE)) -> HPS 150W new dimming | L16: =IF(ISNA(HLOOKUP(L17,'2. LCC-calc.'!$I$59:$XFD$108,2,FALSE)) = TRUE, "",HLOOKUP(L17,'2. LCC-calc.'!$I$59:$XFD$108,2,FALSE)) -> NEW LED dimming | O16: =IF(ISNA(HLOOKUP(O17,'2. LCC-calc.'!$I$59:$XFD$108,2,FALSE)) = TRUE, "",HLOOKUP(O17,'2. LCC-calc.'!$I$59:$XFD$108,2,FALSE)) -> PC Amber | R16: =IF(ISNA(HLOOKUP(R17,'2. LCC-calc.'!$I$59:$XFD$108,2,FALSE)) = TRUE, "",HLOOKUP(R17,'2. LCC-calc.'!$I$59:$XFD$108,2,FALSE)) -> 2200 k reduced lumens | X16: LCC-costs | AB16: =IF(ISNA(HLOOKUP(AB17,'2. LCC-calc.'!$I$59:$XFD$108,2,FALSE)) = TRUE, "",HLOOKUP(AB17,'2. LCC-calc.'!$I$59:$XFD$108,2,FALSE)) -> LED diming | AE16: =IF(ISNA(HLOOKUP(AE17,'2. LCC-calc.'!$I$59:$XFD$108,2,FALSE)) = TRUE, "",HLOOKUP(AE17,'2. LCC-calc.'!$I$59:$XFD$108,2,FALSE)) -> 4000k reduced Lumens | AH16: =IF(ISNA(HLOOKUP(AH17,'2. LCC-calc.'!$I$59:$XFD$108,2,FALSE)) = TRUE, "",HLOOKUP(AH17,'2. LCC-calc.'!$I$59:$XFD$108,2,FALSE)) -> 3000k reduced lumens | AK16: =IF(ISNA(HLOOKUP(AK17,'2. LCC-calc.'!$I$59:$XFD$108,2,FALSE)) = TRUE, "",HLOOKUP(AK17,'2. LCC-calc.'!$I$59:$XFD$108,2,FALSE)) -> HPS 150W standar diming | AN16: =IF(ISNA(HLOOKUP(AN17,'2. LCC-calc.'!$I$59:$XFD$108,2,FALSE)) = TRUE, "",HLOOKUP(AN17,'2. LCC-calc.'!$I$59:$XFD$108,2,FALSE)) -> Current facility
B17: Top 1-5 most cost-effective alternatives | F17: 1 | I17: 2 | L17: 3 | O17: 4 | R17: 5 | X17: Top 6-10 most cost-effective alternatives | AB17: 6 | AE17: 7 | AH17: 8 | AK17: 9 | AN17: 10
B19: Investment costs | F19: =IF(ISNA(HLOOKUP(F17,'2. LCC-calc.'!$I$59:$XFD$108,24,FALSE)) = TRUE, "",HLOOKUP(F17,'2. LCC-calc.'!$I$59:$XFD$108,24,FALSE)) -> 2280500 | I19: =IF(ISNA(HLOOKUP(I17,'2. LCC-calc.'!$I$59:$XFD$108,24,FALSE)) = TRUE, "",HLOOKUP(I17,'2. LCC-calc.'!$I$59:$XFD$108,24,FALSE)) -> 2280500 | L19: =IF(ISNA(HLOOKUP(L17,'2. LCC-calc.'!$I$59:$XFD$108,24,FALSE)) = TRUE, "",HLOOKUP(L17,'2. LCC-calc.'!$I$59:$XFD$108,24,FALSE)) -> 2522000 | O19: =IF(ISNA(HLOOKUP(O17,'2. LCC-calc.'!$I$59:$XFD$108,24,FALSE)) = TRUE, "",HLOOKUP(O17,'2. LCC-calc.'!$I$59:$XFD$108,24,FALSE)) -> 2522000 | R19: =IF(ISNA(HLOOKUP(R17,'2. LCC-calc.'!$I$59:$XFD$108,24,FALSE)) = TRUE, "",HLOOKUP(R17,'2. LCC-calc.'!$I$59:$XFD$108,24,FALSE)) -> 2522500 | X19: Investment costs | AB19: =IF(ISNA(HLOOKUP(AB17,'2. LCC-calc.'!$I$59:$XFD$108,24,FALSE)) = TRUE, "",HLOOKUP(AB17,'2. LCC-calc.'!$I$59:$XFD$108,24,FALSE)) -> 2522000 | AE19: =IF(ISNA(HLOOKUP(AE17,'2. LCC-calc.'!$I$59:$XFD$108,24,FALSE)) = TRUE, "",HLOOKUP(AE17,'2. LCC-calc.'!$I$59:$XFD$108,24,FALSE)) -> 2522000 | AH19: =IF(ISNA(HLOOKUP(AH17,'2. LCC-calc.'!$I$59:$XFD$108,24,FALSE)) = TRUE, "",HLOOKUP(AH17,'2. LCC-calc.'!$I$59:$XFD$108,24,FALSE)) -> 2522000 | AK19: =IF(ISNA(HLOOKUP(AK17,'2. LCC-calc.'!$I$59:$XFD$108,24,FALSE)) = TRUE, "",HLOOKUP(AK17,'2. LCC-calc.'!$I$59:$XFD$108,24,FALSE)) -> 2280500 | AN19: =IF(ISNA(HLOOKUP(AN17,'2. LCC-calc.'!$I$59:$XFD$108,24,FALSE)) = TRUE, "",HLOOKUP(AN17,'2. LCC-calc.'!$I$59:$XFD$108,24,FALSE)) -> 2280500
B20: Energy costs | F20: =IF(ISNA(HLOOKUP(F17,'2. LCC-calc.'!$I$59:$XFD$108,35,FALSE)) = TRUE, "",HLOOKUP(F17,'2. LCC-calc.'!$I$59:$XFD$108,35,FALSE)) -> 416029.3558 | I20: =IF(ISNA(HLOOKUP(I17,'2. LCC-calc.'!$I$59:$XFD$108,35,FALSE)) = TRUE, "",HLOOKUP(I17,'2. LCC-calc.'!$I$59:$XFD$108,35,FALSE)) -> 753766.7173 | L20: =IF(ISNA(HLOOKUP(L17,'2. LCC-calc.'!$I$59:$XFD$108,35,FALSE)) = TRUE, "",HLOOKUP(L17,'2. LCC-calc.'!$I$59:$XFD$108,35,FALSE)) -> 381008.815 | O20: =IF(ISNA(HLOOKUP(O17,'2. LCC-calc.'!$I$59:$XFD$108,35,FALSE)) = TRUE, "",HLOOKUP(O17,'2. LCC-calc.'!$I$59:$XFD$108,35,FALSE)) -> 452168.3536 | R20: =IF(ISNA(HLOOKUP(R17,'2. LCC-calc.'!$I$59:$XFD$108,35,FALSE)) = TRUE, "",HLOOKUP(R17,'2. LCC-calc.'!$I$59:$XFD$108,35,FALSE)) -> 452168.3536 | X20: Energy costs | AB20: =IF(ISNA(HLOOKUP(AB17,'2. LCC-calc.'!$I$59:$XFD$108,35,FALSE)) = TRUE, "",HLOOKUP(AB17,'2. LCC-calc.'!$I$59:$XFD$108,35,FALSE)) -> 476261.0188 | AE20: =IF(ISNA(HLOOKUP(AE17,'2. LCC-calc.'!$I$59:$XFD$108,35,FALSE)) = TRUE, "",HLOOKUP(AE17,'2. LCC-calc.'!$I$59:$XFD$108,35,FALSE)) -> 478937.9816 | AH20: =IF(ISNA(HLOOKUP(AH17,'2. LCC-calc.'!$I$59:$XFD$108,35,FALSE)) = TRUE, "",HLOOKUP(AH17,'2. LCC-calc.'!$I$59:$XFD$108,35,FALSE)) -> 506376.8503 | AK20: =IF(ISNA(HLOOKUP(AK17,'2. LCC-calc.'!$I$59:$XFD$108,35,FALSE)) = TRUE, "",HLOOKUP(AK17,'2. LCC-calc.'!$I$59:$XFD$108,35,FALSE)) -> 962331.456 | AN20: =IF(ISNA(HLOOKUP(AN17,'2. LCC-calc.'!$I$59:$XFD$108,35,FALSE)) = TRUE, "",HLOOKUP(AN17,'2. LCC-calc.'!$I$59:$XFD$108,35,FALSE)) -> 1127624.741
B21: Maintenance costs | F21: =IF(ISNA(HLOOKUP(F17,'2. LCC-calc.'!$I$59:$XFD$108,47,FALSE)) = TRUE, "",HLOOKUP(F17,'2. LCC-calc.'!$I$59:$XFD$108,47,FALSE)) -> 517227.5559 | I21: =IF(ISNA(HLOOKUP(I17,'2. LCC-calc.'!$I$59:$XFD$108,47,FALSE)) = TRUE, "",HLOOKUP(I17,'2. LCC-calc.'!$I$59:$XFD$108,47,FALSE)) -> 517227.5559 | L21: =IF(ISNA(HLOOKUP(L17,'2. LCC-calc.'!$I$59:$XFD$108,47,FALSE)) = TRUE, "",HLOOKUP(L17,'2. LCC-calc.'!$I$59:$XFD$108,47,FALSE)) -> 651707.8533 | O21: =IF(ISNA(HLOOKUP(O17,'2. LCC-calc.'!$I$59:$XFD$108,47,FALSE)) = TRUE, "",HLOOKUP(O17,'2. LCC-calc.'!$I$59:$XFD$108,47,FALSE)) -> 651686.6366 | R21: =IF(ISNA(HLOOKUP(R17,'2. LCC-calc.'!$I$59:$XFD$108,47,FALSE)) = TRUE, "",HLOOKUP(R17,'2. LCC-calc.'!$I$59:$XFD$108,47,FALSE)) -> 651676.409 | X21: Maintenance costs | AB21: =IF(ISNA(HLOOKUP(AB17,'2. LCC-calc.'!$I$59:$XFD$108,47,FALSE)) = TRUE, "",HLOOKUP(AB17,'2. LCC-calc.'!$I$59:$XFD$108,47,FALSE)) -> 651707.8533 | AE21: =IF(ISNA(HLOOKUP(AE17,'2. LCC-calc.'!$I$59:$XFD$108,47,FALSE)) = TRUE, "",HLOOKUP(AE17,'2. LCC-calc.'!$I$59:$XFD$108,47,FALSE)) -> 651696.8646 | AH21: =IF(ISNA(HLOOKUP(AH17,'2. LCC-calc.'!$I$59:$XFD$108,47,FALSE)) = TRUE, "",HLOOKUP(AH17,'2. LCC-calc.'!$I$59:$XFD$108,47,FALSE)) -> 651702.3589 | AK21: =IF(ISNA(HLOOKUP(AK17,'2. LCC-calc.'!$I$59:$XFD$108,47,FALSE)) = TRUE, "",HLOOKUP(AK17,'2. LCC-calc.'!$I$59:$XFD$108,47,FALSE)) -> 517227.5559 | AN21: =IF(ISNA(HLOOKUP(AN17,'2. LCC-calc.'!$I$59:$XFD$108,47,FALSE)) = TRUE, "",HLOOKUP(AN17,'2. LCC-calc.'!$I$59:$XFD$108,47,FALSE)) -> 517227.5559
B22: Total LCC-costs | F22: =IF(ISNA(HLOOKUP(F17,'2. LCC-calc.'!$I$59:$XFD$108,50,FALSE)) = TRUE, "",HLOOKUP(F17,'2. LCC-calc.'!$I$59:$XFD$108,50,FALSE)) -> 3213756.912 | I22: =IF(ISNA(HLOOKUP(I17,'2. LCC-calc.'!$I$59:$XFD$108,50,FALSE)) = TRUE, "",HLOOKUP(I17,'2. LCC-calc.'!$I$59:$XFD$108,50,FALSE)) -> 3551494.273 | L22: =IF(ISNA(HLOOKUP(L17,'2. LCC-calc.'!$I$59:$XFD$108,50,FALSE)) = TRUE, "",HLOOKUP(L17,'2. LCC-calc.'!$I$59:$XFD$108,50,FALSE)) -> 3554716.668 | O22: =IF(ISNA(HLOOKUP(O17,'2. LCC-calc.'!$I$59:$XFD$108,50,FALSE)) = TRUE, "",HLOOKUP(O17,'2. LCC-calc.'!$I$59:$XFD$108,50,FALSE)) -> 3625854.99 | R22: =IF(ISNA(HLOOKUP(R17,'2. LCC-calc.'!$I$59:$XFD$108,50,FALSE)) = TRUE, "",HLOOKUP(R17,'2. LCC-calc.'!$I$59:$XFD$108,50,FALSE)) -> 3626344.763 | X22: Total LCC-costs | AB22: =IF(ISNA(HLOOKUP(AB17,'2. LCC-calc.'!$I$59:$XFD$108,50,FALSE)) = TRUE, "",HLOOKUP(AB17,'2. LCC-calc.'!$I$59:$XFD$108,50,FALSE)) -> 3649968.872 | AE22: =IF(ISNA(HLOOKUP(AE17,'2. LCC-calc.'!$I$59:$XFD$108,50,FALSE)) = TRUE, "",HLOOKUP(AE17,'2. LCC-calc.'!$I$59:$XFD$108,50,FALSE)) -> 3652634.846 | AH22: =IF(ISNA(HLOOKUP(AH17,'2. LCC-calc.'!$I$59:$XFD$108,50,FALSE)) = TRUE, "",HLOOKUP(AH17,'2. LCC-calc.'!$I$59:$XFD$108,50,FALSE)) -> 3680079.209 | AK22: =IF(ISNA(HLOOKUP(AK17,'2. LCC-calc.'!$I$59:$XFD$108,50,FALSE)) = TRUE, "",HLOOKUP(AK17,'2. LCC-calc.'!$I$59:$XFD$108,50,FALSE)) -> 3760059.012 | AN22: =IF(ISNA(HLOOKUP(AN17,'2. LCC-calc.'!$I$59:$XFD$108,50,FALSE)) = TRUE, "",HLOOKUP(AN17,'2. LCC-calc.'!$I$59:$XFD$108,50,FALSE)) -> 3925352.297
B24: Control | F24: =IF(ISNA(HLOOKUP(F17,'2. LCC-calc.'!$I$59:$XFD$108,30,FALSE))=TRUE,"",IF(HLOOKUP(F17,'2. LCC-calc.'!$I$59:$XFD$108,30,FALSE)>0,"Ja","Nej")) -> Ja | I24: =IF(ISNA(HLOOKUP(I17,'2. LCC-calc.'!$I$59:$XFD$108,30,FALSE))=TRUE,"",IF(HLOOKUP(I17,'2. LCC-calc.'!$I$59:$XFD$108,30,FALSE)>0,"Ja","Nej")) -> Ja | L24: =IF(ISNA(HLOOKUP(L17,'2. LCC-calc.'!$I$59:$XFD$108,30,FALSE))=TRUE,"",IF(HLOOKUP(L17,'2. LCC-calc.'!$I$59:$XFD$108,30,FALSE)>0,"Ja","Nej")) -> Ja | O24: =IF(ISNA(HLOOKUP(O17,'2. LCC-calc.'!$I$59:$XFD$108,30,FALSE))=TRUE,"",IF(HLOOKUP(O17,'2. LCC-calc.'!$I$59:$XFD$108,30,FALSE)>0,"Ja","Nej")) -> Ja | R24: =IF(ISNA(HLOOKUP(R17,'2. LCC-calc.'!$I$59:$XFD$108,30,FALSE))=TRUE,"",IF(HLOOKUP(R17,'2. LCC-calc.'!$I$59:$XFD$108,30,FALSE)>0,"Ja","Nej")) -> Ja | X24: Control | AB24: =IF(ISNA(HLOOKUP(AB17,'2. LCC-calc.'!$I$59:$XFD$108,30,FALSE))=TRUE,"",IF(HLOOKUP(AB17,'2. LCC-calc.'!$I$59:$XFD$108,30,FALSE)>0,"Ja","Nej")) -> Ja | AE24: =IF(ISNA(HLOOKUP(AE17,'2. LCC-calc.'!$I$59:$XFD$108,30,FALSE))=TRUE,"",IF(HLOOKUP(AE17,'2. LCC-calc.'!$I$59:$XFD$108,30,FALSE)>0,"Ja","Nej")) -> Ja | AH24: =IF(ISNA(HLOOKUP(AH17,'2. LCC-calc.'!$I$59:$XFD$108,30,FALSE))=TRUE,"",IF(HLOOKUP(AH17,'2. LCC-calc.'!$I$59:$XFD$108,30,FALSE)>0,"Ja","Nej")) -> Ja | AK24: =IF(ISNA(HLOOKUP(AK17,'2. LCC-calc.'!$I$59:$XFD$108,30,FALSE))=TRUE,"",IF(HLOOKUP(AK17,'2. LCC-calc.'!$I$59:$XFD$108,30,FALSE)>0,"Ja","Nej")) -> Ja | AN24: =IF(ISNA(HLOOKUP(AN17,'2. LCC-calc.'!$I$59:$XFD$108,30,FALSE))=TRUE,"",IF(HLOOKUP(AN17,'2. LCC-calc.'!$I$59:$XFD$108,30,FALSE)>0,"Ja","Nej")) -> Ja
B26: Energy usage & climate impact | F26: =F16 -> HPS 70W standar diming | I26: =I16 -> HPS 150W new dimming | L26: =L16 -> NEW LED dimming | O26: =O16 -> PC Amber | R26: =R16 -> 2200 k reduced lumens | X26: Energy usage & climate impact | AB26: =AB16 -> LED diming | AE26: =AE16 -> 4000k reduced Lumens | AH26: =AH16 -> 3000k reduced lumens | AK26: =AK16 -> HPS 150W standar diming | AN26: =AN16 -> Current facility
B27: Energy usage | E27: [kWh/year] | F27: =IF(ISNA(HLOOKUP(F17,'2. LCC-calc.'!$I$59:$XFD$108,32,FALSE)) = TRUE, "",HLOOKUP(F17,'2. LCC-calc.'!$I$59:$XFD$108,32,FALSE)) -> 113450 | I27: =IF(ISNA(HLOOKUP(I17,'2. LCC-calc.'!$I$59:$XFD$108,32,FALSE)) = TRUE, "",HLOOKUP(I17,'2. LCC-calc.'!$I$59:$XFD$108,32,FALSE)) -> 205550 | L27: =IF(ISNA(HLOOKUP(L17,'2. LCC-calc.'!$I$59:$XFD$108,32,FALSE)) = TRUE, "",HLOOKUP(L17,'2. LCC-calc.'!$I$59:$XFD$108,32,FALSE)) -> 103900 | O27: =IF(ISNA(HLOOKUP(O17,'2. LCC-calc.'!$I$59:$XFD$108,32,FALSE)) = TRUE, "",HLOOKUP(O17,'2. LCC-calc.'!$I$59:$XFD$108,32,FALSE)) -> 123305 | R27: =IF(ISNA(HLOOKUP(R17,'2. LCC-calc.'!$I$59:$XFD$108,32,FALSE)) = TRUE, "",HLOOKUP(R17,'2. LCC-calc.'!$I$59:$XFD$108,32,FALSE)) -> 123305 | X27: Energy usage | AA27: [kWh/year] | AB27: =IF(ISNA(HLOOKUP(AB17,'2. LCC-calc.'!$I$59:$XFD$108,49,FALSE)) = TRUE, "",HLOOKUP(AB17,'2. LCC-calc.'!$I$59:$XFD$108,49,FALSE)) -> 1127968.872 | AE27: =IF(ISNA(HLOOKUP(AE17,'2. LCC-calc.'!$I$59:$XFD$108,49,FALSE)) = TRUE, "",HLOOKUP(AE17,'2. LCC-calc.'!$I$59:$XFD$108,49,FALSE)) -> 1130634.846 | AH27: =IF(ISNA(HLOOKUP(AH17,'2. LCC-calc.'!$I$59:$XFD$108,49,FALSE)) = TRUE, "",HLOOKUP(AH17,'2. LCC-calc.'!$I$59:$XFD$108,49,FALSE)) -> 1158079.209 | AK27: =IF(ISNA(HLOOKUP(AK17,'2. LCC-calc.'!$I$59:$XFD$108,49,FALSE)) = TRUE, "",HLOOKUP(AK17,'2. LCC-calc.'!$I$59:$XFD$108,49,FALSE)) -> 1479559.012 | AN27: =IF(ISNA(HLOOKUP(AN17,'2. LCC-calc.'!$I$59:$XFD$108,49,FALSE)) = TRUE, "",HLOOKUP(AN17,'2. LCC-calc.'!$I$59:$XFD$108,49,FALSE)) -> 1644852.297
B28: Climate impact | E28: [kgC02-e/year] | F28: =IF(ISNA(HLOOKUP(F17,'2. LCC-calc.'!$I$59:$XFD$108,6,FALSE)) = TRUE, "",HLOOKUP(F17,'2. LCC-calc.'!$I$59:$XFD$108,6,FALSE)) -> 49067.125 | I28: =IF(ISNA(HLOOKUP(I17,'2. LCC-calc.'!$I$59:$XFD$108,6,FALSE)) = TRUE, "",HLOOKUP(I17,'2. LCC-calc.'!$I$59:$XFD$108,6,FALSE)) -> 89619.8 | L28: =IF(ISNA(HLOOKUP(L17,'2. LCC-calc.'!$I$59:$XFD$108,6,FALSE)) = TRUE, "",HLOOKUP(L17,'2. LCC-calc.'!$I$59:$XFD$108,6,FALSE)) -> 55673.1526 | O28: =IF(ISNA(HLOOKUP(O17,'2. LCC-calc.'!$I$59:$XFD$108,6,FALSE)) = TRUE, "",HLOOKUP(O17,'2. LCC-calc.'!$I$59:$XFD$108,6,FALSE)) -> 62624.88323 | R28: =IF(ISNA(HLOOKUP(R17,'2. LCC-calc.'!$I$59:$XFD$108,6,FALSE)) = TRUE, "",HLOOKUP(R17,'2. LCC-calc.'!$I$59:$XFD$108,6,FALSE)) -> 62638.8167 | X28: Climate impact | AA28: [kgC02-e/year] | AB28: =IF(ISNA(HLOOKUP(AB17,'2. LCC-calc.'!$I$59:$XFD$108,6,FALSE)) = TRUE, "",HLOOKUP(AB17,'2. LCC-calc.'!$I$59:$XFD$108,6,FALSE)) -> 64040.06375 | AE28: =IF(ISNA(HLOOKUP(AE17,'2. LCC-calc.'!$I$59:$XFD$108,6,FALSE)) = TRUE, "",HLOOKUP(AE17,'2. LCC-calc.'!$I$59:$XFD$108,6,FALSE)) -> 69982.59957 | AH28: =IF(ISNA(HLOOKUP(AH17,'2. LCC-calc.'!$I$59:$XFD$108,6,FALSE)) = TRUE, "",HLOOKUP(AH17,'2. LCC-calc.'!$I$59:$XFD$108,6,FALSE)) -> 70132.70802 | AK28: =IF(ISNA(HLOOKUP(AK17,'2. LCC-calc.'!$I$59:$XFD$108,6,FALSE)) = TRUE, "",HLOOKUP(AK17,'2. LCC-calc.'!$I$59:$XFD$108,6,FALSE)) -> 114417.3 | AN28: =IF(ISNA(HLOOKUP(AN17,'2. LCC-calc.'!$I$59:$XFD$108,6,FALSE)) = TRUE, "",HLOOKUP(AN17,'2. LCC-calc.'!$I$59:$XFD$108,6,FALSE)) -> 134070

Sheet 4. Tool parameters
G2: ='1. Introduction'!G2 -> LCC-calculation for procurement of outdoor lighting systems
G3: ='1. Introduction'!G3 -> Version 2.14
G4: ='1. Introduction'!G4 -> Date: 2022-05-10
B9: Tool parameters
B10: Gathered instructions regarding the parameters. | G10: CALCULATION CONDITIONS (specified by the CA)
G11: Note | H11: Parameter | I11: Instruction
G12: 1.1 | H12: Usage time | I12: Estimated time for using the lighting system. The calculation should be based on the luminaire with the best expected technical lifespan. 25 years might be considered as a value of reference but it might also be longer.. Poles might have a lifespan of 60 years.
G13: 1.2 | H13: Discount rate | I13: The discount rate determines the calculation of future costs to present value. The discount rate shall be based on the calculation rate the organisation uses for investments, and might be nominal as well as real. Often the internal rate of return is used for LCC-calculations. A high calculation rate gives more emphasis to the use phase costs.
G14: 1.3 | H14: Electricity price | I14: The organisation’s agreed-on electricity price (SEK/kWh) shall be inserted. Alternatively, a standard amount of 1-1,5 SEK/kWh.
G15: 1.4 | H15: Annual electricity price change | I15: Factor for calculating price changes apart from inflation.
G16: 1.5 | H16: Climate impact electricity usage | I16: In order to calculate the impact from electricity usage one can insert the electricity supplier’s data regarding the climate impact from the used mix of electricity (carbon dioxide per kWh). Alternative emission factors can be found in tab 6.
G17: 1.6 | H17: Operating hours system | I17: Insert the lighting system’s total operating hours per year.
G18: 1.7 | H18: Operating hours full power | I18: Insert the operating hours per year when the lighting system is using full power.
G19: 1.8 | H19: Operating hours power level 1 | I19: Control for outdoor lighting is often using a dimmer or a reduced power level. If this is requested in the tender documents, then insert the number of hours per year when the luminaire shall be on reduced power according to the first power level. The time shall be based on actual, existing operating data. A recommendation is to use reduced power between 22-05 in places where no unprotected road user resides. This is equivalent to 2555h/year (7h x 365 days = 2555h/year). The lighting may be totally turned off at places which are not used during night time. In roads with a heavy flow of traffic the level of lighting might be reduced during night time to a level equivalent to that used in roads with a low flow of traffic, road class M5 with a mean luminance of 0,5cd/m2 at the lowest. The Swedish Transport Administration has further guidelines regarding lower lighting power during night time. The LCC-tool might be used to evaluate whether or not it is profitable to use control systems for a lighting system. For some light sources, for example high pressure sodium, the luminous efficacy is lower with a dimmer.
G20: 1.9 | H20: Operating hours power level 2 | I20: If more than one power level is being used,operating hours for the second power level is inserted here.
G21: DATA FROM SUPPLIER
H22: Name | I22: Name of investment option.
G23: CALCULATION OF INVESTMENT COSTS
G24: 2.1 | H24: Number of luminaires | I24: Insert the number of luminaires that is included in the suggested solution.
G25: 2.2 | H25: Price per luminaire (incl. light source, electrical ballast, control device) | I25: Insert the total price for luminaire, lighting source, electrical ballast and built-in control device. Price shall be specified per piece. If a luminaire has more than one lighting source, then these shall be added together.
G26: 2.3 | H26: Material and labour costs per luminaire | I26: Specify material and labour costs for the installation, excl. external control device. Eventual costs for operation start-up shall be included here (calibration and testing). Material can, for example, include cables. Labour cost may include personnel and machines. If the contract work is included in the tender, the cost for this shall be specified. If the contract work is not included, then the cost will be based on an estimation. How the estimation has been calculated shall be available to the CA.
G27: 2.4 | H27: Number of poles and foundations | I27: Insert number of poles that is included in the suggested solution. Poles have a longer lifespan than luminaires and is therefore not always a part of the procurement.
G28: 2.5 | H28: Price per pole and foundation | I28: If poles are included in the tender, the total price of pole and foundation (per piece) shall be inserted here.
G29: 2.6 | H29: Material and labour costs per pole incl. foundation | I29: If poles are included in the tender, the cost of material and labour for installations shall be inserted here.
G30: 2.7 | H30: Cost of external control device (incl. operation start-up and license fees) | I30: The control device is often a part of the luminaire but not always. If the control device is separated from the luminaire and not included in the price, then the cost of the external control device shall be provided here. An example is surveillance system. This is necessary only if it is specified in the tender documents, otherwise this box shall be left empty. The cost shall include the costs for installation, operation start-up, license fees as well as any costs for subscription and communication for the external device.
G31: CALCULATION OF OPERATING COSTS
G32: 3.1 | H32: Effect per luminaire incl. operating loss and system effects | I32: Effect per luminaire (W), including operating loss and standby, shall be specified.
G33: 3.2 | H33: Reduced power level 1 | I33: If control with reduced power level is requested in the procurement, then the effect (W) of power level 1 shall be inserted here. If level of dim has been specified by the CA this shall be followed. It might for example be specified as a road class or as percentage of full effect. If the exact effect is unknown then it might be presumed that it corresponds to the light quantity, i.e. if a luminaire is reduced to 70%, the effect is 70% of full effect.
G34: 3.3 | H34: Reduced power level 2 | I34: If more than one power level is being used, the second power level is inserted here.
G35: CALCULATION OF MAINTENANCE COSTS
G36: 4.1 | H36: Light source cost per luminaire | I36: Insert costs for light sources when replacing, €/luminaire. All light sources in a luminaire shall be included..
G37: 4.2 | H37: Labour cost light source replacement | I37: Insert labour cost for replacing light sources, €/luminaire.
G38: 4.3 | H38: Replacement interval light sources | I38: Specify the interval for replacing light sources according to the operation and maintenance plan. The lifespan shall be calculated according to standards available in the eco-design regulations.
G39: 4.4 | H39: Electrical ballast cost | I39: Electrical ballasts are expected to have the same lifespan as the light source. Sometimes replacing electrical ballasts are done collectively according to the operation and maintenance plan. The cost for this shall be specified here, with the cost broken down to cost per luminaire.
G40: 4.5 | H40: Labour cost electrical ballast replacement | I40: Insert the labour cost for collectively replacements of electrical ballasts. Price per luminaire.
G41: 4.6 | H41: Replacement interval electrical ballast | I41: Specify the interval for collective replacements of electrical ballasts according to the operation and maintenance plan. The lifespan is calculated according to standards available in the eco-design regulations.
G42: 4.7 | H42: Lifespan luminaire | I42: Insert the lifespan of luminaire in number of years. Note any requirements in the tender documents.
G43: 4.8 | H43: Lifespan pole | I43: Insert lifespan of pole in number of years. A pole might have a lifespan of between 25 to 50 years, depending on its quality and paint.
G44: 4.9 | H44: Labour cost inspection | I44: Insert the cost for inspection of the system, special control done by a professional person. The inspection should include searching for damages, audit documents and making sure that error protection is functioning. Cleaning the luminaires (LED) might be appropriate to conduct in connection with the inspection. Details regarding cleaning shall be specified in the tender documents, depending on the environment for the luminaires.
G45: 4.10 | H45: Inspection interval | I45: Inspection should be done according to the system’s operation and maintenance plan. Some systems have fixed intervals, for example aerial, low-tension lines every 8th year. For other system types it is up to the owner to decide upon an appropriate interval. Example: The Swedish Transport Administration have a four-year interval for their surveillance. The surveillance is often done in connection with replacement light sources.
G46: 4.11 | H46: Labour cost surveillance | I46: Insert the cost for surveillance of the system. Surveillance is the owner’s control to make sure that the system is functioning and safe from damages to persons or property due to electricity.
G47: 4.12 | H47: Surveillance interval | I47: Surveillance is done according to the system’s operation and maintenance plan. The SwedishnTransport Administration, for example, conduct surveillance twice annually.
G48: 4.13 | H48: Correlated Colour Temperature | I48: This parameter the aspect of the colour of the light. It is heavily related wit it's envioromental impact.
G49: 4.14 | H49: Lighting eficiency | I49: This parameter represents how much light (lumens) are emited per power (watt).
G50: RESULT
H51: Total cost | I51: Total cost of the lighting system during its entire usage time.
H52: Energy cost per year | I52: Yearly energy cost is displayed here as a way to increase awareness regarding the energy usage.
H53: Energy cost full usage time | I53: The system’s total energy costs during its usage time is provided here. In some cases, renovating during the usage time might help improve the energy efficiency.
H54: Climate impact | I54: Yearly climate impact, measured in CO2-equivalents, calculated from the system’s energy usage.

Sheet 5. Response sheet
G2: ='1. Introduction'!G2 -> LCC-calculation for procurement of outdoor lighting systems
G3: ='1. Introduction'!G3 -> Version 2.14
G4: ='1. Introduction'!G4 -> Date: 2022-05-10
D9: Response sheet for supplier
D10: LCC-calculation for procurement of outdoor lighting.
D11: Attach one sheet per investment alternative
D13: Project name
D14: Date
D15: Administrator
D17: Name
D18: Investment costs
C19: 2.1 | D19: Number of luminaires | J19: qty
C20: 2.2 | D20: Price per luminaire (incl. light source, electrical ballast, control device) | J20: €/piece
C21: 2.3 | D21: Material and labour costs per luminaire | J21: €/piece
C22: 2.4 | D22: Number of poles and foundations | J22: qty
C23: 2.5 | D23: Price per pole and foundation | J23: €/piece
C24: 2.6 | D24: Material and labour costs per pole incl. foundation | J24: €/piece
C25: 2.7 | D25: Cost of external control device (incl. operation start-up and license fees) | J25: €
D26: Operating costs
C27: 3.1 | D27: Effect per luminaire incl. operatingloss and system effectst | J27: W
C28: 3.2 | D28: Reduced power level 1 | J28: W
C29: 3.3 | D29: Reduced power level 2 | J29: W
D30: Maintenance costs
C31: 4.1 | D31: Light source cost per luminaire | J31: €/piece
C32: 4.2 | D32: Labour cost light source replacement | J32: €/piece
C33: 4.3 | D33: Replacement interval light sources | J33: h
C34: 4.4 | D34: Electrical ballast cost | J34: €/piece
C35: 4.5 | D35: Labour cost electrical ballast replacement | J35: €/piece
C36: 4.6 | D36: Replacement interval electrical ballast | J36: h
C37: 4.7 | D37: Lifespan luminaire | J37: year
C38: 4.8 | D38: Lifespan pole | J38: year
C39: 4.9 | D39: Labour cost inspection | J39: €/piece
C40: 4.10 | D40: Inspection interval | J40: year
C41: 4.11 | D41: Labour cost surveillance | J41: €/piece
C42: 4.12 | D42: Surveillance interval | J42: year
C43: 4.13 | D43: Correlated Colour Temperature | J43: K
C44: 4.14 | D44: Lighting eficiency | J44: lm/w

Sheet 6. Climate impact factors
G2: ='1. Introduction'!G2 -> LCC-calculation for procurement of outdoor lighting systems
G3: ='1. Introduction'!G3 -> Version 2.14
G4: ='1. Introduction'!G4 -> Date: 2022-05-10
B9: Climate impact
B10: These factors may be used to voluntarily calculate climate impact from electricity usage. The factors shall be inserted in row 1.5 in the LCC-tool. | G10: Factors for calculating climate impact from electricity usage [kgCO2/kWh]
G11: Origin-labelled electricity | H11: 0
G12: Swedish mix (normal year) | H12: 0.02
G13: Nordic mix | H13: 0.1
G14: Unknown origin (Nordic) | H14: 0.344
G15: EU (25) | H15: 0.415
G17: Source: Svensk Energi (www.svenskenergi.se) 2016-05-25. The value for the EU 25-mix is from the report "Den svenska elens miljöpåvekan" published in 2010.
